{"text_format":"3","workbook":"xlsx","n_sheets":2,"sheets":["Lesrooster","Vakkenlijst"],"not_rendered":{"defined_names":17},"read":"whole","date_system":"1900"}

{"sheet":"Lesrooster","index":0,"n_rows":56,"n_cols":9,"rows_kept":56,"merged":[[0,1,1,5],[0,8,1,8]]}
[null,"LESROOSTER",{"$nulls":4},"BEGIN ROOSTER","TIJDSINTERVAL","Vakkenlijst"]
[{"$nulls":6},"08:00:00","15 MIN"]
[null,"TIJD","ZONDAG","MAANDAG","DINSDAG","WOENSDAG","DONDERDAG","VRIJDAG","ZATERDAG"]
[null,{"$f":"ScheduleStart","v":"08:00:00"},{"$f":"IFERROR(INDEX(ClassList[],MATCH(SUMPRODUCT((ClassList[DAG]=ClassSchedule[[#Headers],[ZONDAG]])*(ROUNDDOWN($B4,10)>=ROUNDDOWN(ClassList[BEGINTIJD],10))*($B4<=ClassList[EINDTIJD]),ClassList[UNIEK]),ClassList[UNIEK],0),2),0)","v":0},{"$f":"IFERROR(INDEX(ClassList[],MATCH(SUMPRODUCT((ClassList[DAG]=ClassSchedule[[#Headers],[MAANDAG]])*(ROUNDDOWN($B4,10)>=ROUNDDOWN(ClassList[BEGINTIJD],10))*($B4<=ClassList[EINDTIJD]),ClassList[UNIEK]),ClassList[UNIEK],0),2),0)","v":0},{"$f":"IFERROR(INDEX(ClassList[],MATCH(SUMPRODUCT((ClassList[DAG]=ClassSchedule[[#Headers],[DINSDAG]])*(ROUNDDOWN($B4,10)>=ROUNDDOWN(ClassList[BEGINTIJD],10))*($B4<=ClassList[EINDTIJD]),ClassList[UNIEK]),ClassList[UNIEK],0),2),0)","v":0},{"$f":"IFERROR(INDEX(ClassList[],MATCH(SUMPRODUCT((ClassList[DAG]=ClassSchedule[[#Headers],[WOENSDAG]])*(ROUNDDOWN($B4,10)>=ROUNDDOWN(ClassList[BEGINTIJD],10))*($B4<=ClassList[EINDTIJD]),ClassList[UNIEK]),ClassList[UNIEK],0),2),0)","v":0},{"$f":"IFERROR(INDEX(ClassList[],MATCH(SUMPRODUCT((ClassList[DAG]=ClassSchedule[[#Headers],[DONDERDAG]])*(ROUNDDOWN($B4,10)>=ROUNDDOWN(ClassList[BEGINTIJD],10))*($B4<=ClassList[EINDTIJD]),ClassList[UNIEK]),ClassList[UNIEK],0),2),0)","v":0},{"$f":"IFERROR(INDEX(ClassList[],MATCH(SUMPRODUCT((ClassList[DAG]=ClassSchedule[[#Headers],[VRIJDAG]])*(ROUNDDOWN($B4,10)>=ROUNDDOWN(ClassList[BEGINTIJD],10))*($B4<=ClassList[EINDTIJD]),ClassList[UNIEK]),ClassList[UNIEK],0),2),0)","v":0},{"$f":"IFERROR(INDEX(ClassList[],MATCH(SUMPRODUCT((ClassList[DAG]=ClassSchedule[[#Headers],[ZATERDAG]])*(ROUNDDOWN($B4,10)>=ROUNDDOWN(ClassList[BEGINTIJD],10))*($B4<=ClassList[EINDTIJD]),ClassList[UNIEK]),ClassList[UNIEK],0),2),0)","v":0}]
[null,{"$f":"B4+Verhoging","v":"08:15:00"},{"$f":"IFERROR(INDEX(ClassList[],MATCH(SUMPRODUCT((ClassList[DAG]=ClassSchedule[[#Headers],[ZONDAG]])*(ROUNDDOWN($B5,10)>=ROUNDDOWN(ClassList[BEGINTIJD],10))*($B5<=ClassList[EINDTIJD]),ClassList[UNIEK]),ClassList[UNIEK],0),2),0)","v":0},{"$f":"IFERROR(INDEX(ClassList[],MATCH(SUMPRODUCT((ClassList[DAG]=ClassSchedule[[#Headers],[MAANDAG]])*(ROUNDDOWN($B5,10)>=ROUNDDOWN(ClassList[BEGINTIJD],10))*($B5<=ClassList[EINDTIJD]),ClassList[UNIEK]),ClassList[UNIEK],0),2),0)","v":"WSK-113"},{"$f":"IFERROR(INDEX(ClassList[],MATCH(SUMPRODUCT((ClassList[DAG]=ClassSchedule[[#Headers],[DINSDAG]])*(ROUNDDOWN($B5,10)>=ROUNDDOWN(ClassList[BEGINTIJD],10))*($B5<=ClassList[EINDTIJD]),ClassList[UNIEK]),ClassList[UNIEK],0),2),0)","v":0},{"$f":"IFERROR(INDEX(ClassList[],MATCH(SUMPRODUCT((ClassList[DAG]=ClassSchedule[[#Headers],[WOENSDAG]])*(ROUNDDOWN($B5,10)>=ROUNDDOWN(ClassList[BEGINTIJD],10))*($B5<=ClassList[EINDTIJD]),ClassList[UNIEK]),ClassList[UNIEK],0),2),0)","v":"WSK-113"},{"$f":"IFERROR(INDEX(ClassList[],MATCH(SUMPRODUCT((ClassList[DAG]=ClassSchedule[[#Headers],[DONDERDAG]])*(ROUNDDOWN($B5,10)>=ROUNDDOWN(ClassList[BEGINTIJD],10))*($B5<=ClassList[EINDTIJD]),ClassList[UNIEK]),ClassList[UNIEK],0),2),0)","v":0},{"$f":"IFERROR(INDEX(ClassList[],MATCH(SUMPRODUCT((ClassList[DAG]=ClassSchedule[[#Headers],[VRIJDAG]])*(ROUNDDOWN($B5,10)>=ROUNDDOWN(ClassList[BEGINTIJD],10))*($B5<=ClassList[EINDTIJD]),ClassList[UNIEK]),ClassList[UNIEK],0),2),0)","v":"WSK-113"},{"$f":"IFERROR(INDEX(ClassList[],MATCH(SUMPRODUCT((ClassList[DAG]=ClassSchedule[[#Headers],[ZATERDAG]])*(ROUNDDOWN($B5,10)>=ROUNDDOWN(ClassList[BEGINTIJD],10))*($B5<=ClassList[EINDTIJD]),ClassList[UNIEK]),ClassList[UNIEK],0),2),0)","v":0}]
[null,"08:30:00",{"$f":"IFERROR(INDEX(ClassList[],MATCH(SUMPRODUCT((ClassList[DAG]=ClassSchedule[[#Headers],[ZONDAG]])*(ROUNDDOWN($B6,10)>=ROUNDDOWN(ClassList[BEGINTIJD],10))*($B6<=ClassList[EINDTIJD]),ClassList[UNIEK]),ClassList[UNIEK],0),2),0)","v":0},{"$f":"IFERROR(INDEX(ClassList[],MATCH(SUMPRODUCT((ClassList[DAG]=ClassSchedule[[#Headers],[MAANDAG]])*(ROUNDDOWN($B6,10)>=ROUNDDOWN(ClassList[BEGINTIJD],10))*($B6<=ClassList[EINDTIJD]),ClassList[UNIEK]),ClassList[UNIEK],0),2),0)","v":"WSK-113"},{"$f":"IFERROR(INDEX(ClassList[],MATCH(SUMPRODUCT((ClassList[DAG]=ClassSchedule[[#Headers],[DINSDAG]])*(ROUNDDOWN($B6,10)>=ROUNDDOWN(ClassList[BEGINTIJD],10))*($B6<=ClassList[EINDTIJD]),ClassList[UNIEK]),ClassList[UNIEK],0),2),0)","v":0},{"$f":"IFERROR(INDEX(ClassList[],MATCH(SUMPRODUCT((ClassList[DAG]=ClassSchedule[[#Headers],[WOENSDAG]])*(ROUNDDOWN($B6,10)>=ROUNDDOWN(ClassList[BEGINTIJD],10))*($B6<=ClassList[EINDTIJD]),ClassList[UNIEK]),ClassList[UNIEK],0),2),0)","v":"WSK-113"},{"$f":"IFERROR(INDEX(ClassList[],MATCH(SUMPRODUCT((ClassList[DAG]=ClassSchedule[[#Headers],[DONDERDAG]])*(ROUNDDOWN($B6,10)>=ROUNDDOWN(ClassList[BEGINTIJD],10))*($B6<=ClassList[EINDTIJD]),ClassList[UNIEK]),ClassList[UNIEK],0),2),0)","v":0},{"$f":"IFERROR(INDEX(ClassList[],MATCH(SUMPRODUCT((ClassList[DAG]=ClassSchedule[[#Headers],[VRIJDAG]])*(ROUNDDOWN($B6,10)>=ROUNDDOWN(ClassList[BEGINTIJD],10))*($B6<=ClassList[EINDTIJD]),ClassList[UNIEK]),ClassList[UNIEK],0),2),0)","v":"WSK-113"},{"$f":"IFERROR(INDEX(ClassList[],MATCH(SUMPRODUCT((ClassList[DAG]=ClassSchedule[[#Headers],[ZATERDAG]])*(ROUNDDOWN($B6,10)>=ROUNDDOWN(ClassList[BEGINTIJD],10))*($B6<=ClassList[EINDTIJD]),ClassList[UNIEK]),ClassList[UNIEK],0),2),0)","v":0}]
[null,"08:45:00",{"$f":"IFERROR(INDEX(ClassList[],MATCH(SUMPRODUCT((ClassList[DAG]=ClassSchedule[[#Headers],[ZONDAG]])*(ROUNDDOWN($B7,10)>=ROUNDDOWN(ClassList[BEGINTIJD],10))*($B7<=ClassList[EINDTIJD]),ClassList[UNIEK]),ClassList[UNIEK],0),2),0)","v":0},{"$f":"IFERROR(INDEX(ClassList[],MATCH(SUMPRODUCT((ClassList[DAG]=ClassSchedule[[#Headers],[MAANDAG]])*(ROUNDDOWN($B7,10)>=ROUNDDOWN(ClassList[BEGINTIJD],10))*($B7<=ClassList[EINDTIJD]),ClassList[UNIEK]),ClassList[UNIEK],0),2),0)","v":"WSK-113"},{"$f":"IFERROR(INDEX(ClassList[],MATCH(SUMPRODUCT((ClassList[DAG]=ClassSchedule[[#Headers],[DINSDAG]])*(ROUNDDOWN($B7,10)>=ROUNDDOWN(ClassList[BEGINTIJD],10))*($B7<=ClassList[EINDTIJD]),ClassList[UNIEK]),ClassList[UNIEK],0),2),0)","v":0},{"$f":"IFERROR(INDEX(ClassList[],MATCH(SUMPRODUCT((ClassList[DAG]=ClassSchedule[[#Headers],[WOENSDAG]])*(ROUNDDOWN($B7,10)>=ROUNDDOWN(ClassList[BEGINTIJD],10))*($B7<=ClassList[EINDTIJD]),ClassList[UNIEK]),ClassList[UNIEK],0),2),0)","v":"WSK-113"},{"$f":"IFERROR(INDEX(ClassList[],MATCH(SUMPRODUCT((ClassList[DAG]=ClassSchedule[[#Headers],[DONDERDAG]])*(ROUNDDOWN($B7,10)>=ROUNDDOWN(ClassList[BEGINTIJD],10))*($B7<=ClassList[EINDTIJD]),ClassList[UNIEK]),ClassList[UNIEK],0),2),0)","v":0},{"$f":"IFERROR(INDEX(ClassList[],MATCH(SUMPRODUCT((ClassList[DAG]=ClassSchedule[[#Headers],[VRIJDAG]])*(ROUNDDOWN($B7,10)>=ROUNDDOWN(ClassList[BEGINTIJD],10))*($B7<=ClassList[EINDTIJD]),ClassList[UNIEK]),ClassList[UNIEK],0),2),0)","v":"WSK-113"},{"$f":"IFERROR(INDEX(ClassList[],MATCH(SUMPRODUCT((ClassList[DAG]=ClassSchedule[[#Headers],[ZATERDAG]])*(ROUNDDOWN($B7,10)>=ROUNDDOWN(ClassList[BEGINTIJD],10))*($B7<=ClassList[EINDTIJD]),ClassList[UNIEK]),ClassList[UNIEK],0),2),0)","v":0}]
[null,"09:00:00",{"$f":"IFERROR(INDEX(ClassList[],MATCH(SUMPRODUCT((ClassList[DAG]=ClassSchedule[[#Headers],[ZONDAG]])*(ROUNDDOWN($B8,10)>=ROUNDDOWN(ClassList[BEGINTIJD],10))*($B8<=ClassList[EINDTIJD]),ClassList[UNIEK]),ClassList[UNIEK],0),2),0)","v":0},{"$f":"IFERROR(INDEX(ClassList[],MATCH(SUMPRODUCT((ClassList[DAG]=ClassSchedule[[#Headers],[MAANDAG]])*(ROUNDDOWN($B8,10)>=ROUNDDOWN(ClassList[BEGINTIJD],10))*($B8<=ClassList[EINDTIJD]),ClassList[UNIEK]),ClassList[UNIEK],0),2),0)","v":"WSK-113"},{"$f":"IFERROR(INDEX(ClassList[],MATCH(SUMPRODUCT((ClassList[DAG]=ClassSchedule[[#Headers],[DINSDAG]])*(ROUNDDOWN($B8,10)>=ROUNDDOWN(ClassList[BEGINTIJD],10))*($B8<=ClassList[EINDTIJD]),ClassList[UNIEK]),ClassList[UNIEK],0),2),0)","v":0},{"$f":"IFERROR(INDEX(ClassList[],MATCH(SUMPRODUCT((ClassList[DAG]=ClassSchedule[[#Headers],[WOENSDAG]])*(ROUNDDOWN($B8,10)>=ROUNDDOWN(ClassList[BEGINTIJD],10))*($B8<=ClassList[EINDTIJD]),ClassList[UNIEK]),ClassList[UNIEK],0),2),0)","v":"WSK-113"},{"$f":"IFERROR(INDEX(ClassList[],MATCH(SUMPRODUCT((ClassList[DAG]=ClassSchedule[[#Headers],[DONDERDAG]])*(ROUNDDOWN($B8,10)>=ROUNDDOWN(ClassList[BEGINTIJD],10))*($B8<=ClassList[EINDTIJD]),ClassList[UNIEK]),ClassList[UNIEK],0),2),0)","v":0},{"$f":"IFERROR(INDEX(ClassList[],MATCH(SUMPRODUCT((ClassList[DAG]=ClassSchedule[[#Headers],[VRIJDAG]])*(ROUNDDOWN($B8,10)>=ROUNDDOWN(ClassList[BEGINTIJD],10))*($B8<=ClassList[EINDTIJD]),ClassList[UNIEK]),ClassList[UNIEK],0),2),0)","v":"WSK-113"},{"$f":"IFERROR(INDEX(ClassList[],MATCH(SUMPRODUCT((ClassList[DAG]=ClassSchedule[[#Headers],[ZATERDAG]])*(ROUNDDOWN($B8,10)>=ROUNDDOWN(ClassList[BEGINTIJD],10))*($B8<=ClassList[EINDTIJD]),ClassList[UNIEK]),ClassList[UNIEK],0),2),0)","v":0}]
[null,"09:15:00",{"$f":"IFERROR(INDEX(ClassList[],MATCH(SUMPRODUCT((ClassList[DAG]=ClassSchedule[[#Headers],[ZONDAG]])*(ROUNDDOWN($B9,10)>=ROUNDDOWN(ClassList[BEGINTIJD],10))*($B9<=ClassList[EINDTIJD]),ClassList[UNIEK]),ClassList[UNIEK],0),2),0)","v":0},{"$f":"IFERROR(INDEX(ClassList[],MATCH(SUMPRODUCT((ClassList[DAG]=ClassSchedule[[#Headers],[MAANDAG]])*(ROUNDDOWN($B9,10)>=ROUNDDOWN(ClassList[BEGINTIJD],10))*($B9<=ClassList[EINDTIJD]),ClassList[UNIEK]),ClassList[UNIEK],0),2),0)","v":"WSK-113"},{"$f":"IFERROR(INDEX(ClassList[],MATCH(SUMPRODUCT((ClassList[DAG]=ClassSchedule[[#Headers],[DINSDAG]])*(ROUNDDOWN($B9,10)>=ROUNDDOWN(ClassList[BEGINTIJD],10))*($B9<=ClassList[EINDTIJD]),ClassList[UNIEK]),ClassList[UNIEK],0),2),0)","v":0},{"$f":"IFERROR(INDEX(ClassList[],MATCH(SUMPRODUCT((ClassList[DAG]=ClassSchedule[[#Headers],[WOENSDAG]])*(ROUNDDOWN($B9,10)>=ROUNDDOWN(ClassList[BEGINTIJD],10))*($B9<=ClassList[EINDTIJD]),ClassList[UNIEK]),ClassList[UNIEK],0),2),0)","v":"WSK-113"},{"$f":"IFERROR(INDEX(ClassList[],MATCH(SUMPRODUCT((ClassList[DAG]=ClassSchedule[[#Headers],[DONDERDAG]])*(ROUNDDOWN($B9,10)>=ROUNDDOWN(ClassList[BEGINTIJD],10))*($B9<=ClassList[EINDTIJD]),ClassList[UNIEK]),ClassList[UNIEK],0),2),0)","v":0},{"$f":"IFERROR(INDEX(ClassList[],MATCH(SUMPRODUCT((ClassList[DAG]=ClassSchedule[[#Headers],[VRIJDAG]])*(ROUNDDOWN($B9,10)>=ROUNDDOWN(ClassList[BEGINTIJD],10))*($B9<=ClassList[EINDTIJD]),ClassList[UNIEK]),ClassList[UNIEK],0),2),0)","v":"WSK-113"},{"$f":"IFERROR(INDEX(ClassList[],MATCH(SUMPRODUCT((ClassList[DAG]=ClassSchedule[[#Headers],[ZATERDAG]])*(ROUNDDOWN($B9,10)>=ROUNDDOWN(ClassList[BEGINTIJD],10))*($B9<=ClassList[EINDTIJD]),ClassList[UNIEK]),ClassList[UNIEK],0),2),0)","v":0}]
[null,"09:30:00",{"$f":"IFERROR(INDEX(ClassList[],MATCH(SUMPRODUCT((ClassList[DAG]=ClassSchedule[[#Headers],[ZONDAG]])*(ROUNDDOWN($B10,10)>=ROUNDDOWN(ClassList[BEGINTIJD],10))*($B10<=ClassList[EINDTIJD]),ClassList[UNIEK]),ClassList[UNIEK],0),2),0)","v":0},{"$f":"IFERROR(INDEX(ClassList[],MATCH(SUMPRODUCT((ClassList[DAG]=ClassSchedule[[#Headers],[MAANDAG]])*(ROUNDDOWN($B10,10)>=ROUNDDOWN(ClassList[BEGINTIJD],10))*($B10<=ClassList[EINDTIJD]),ClassList[UNIEK]),ClassList[UNIEK],0),2),0)","v":0},{"$f":"IFERROR(INDEX(ClassList[],MATCH(SUMPRODUCT((ClassList[DAG]=ClassSchedule[[#Headers],[DINSDAG]])*(ROUNDDOWN($B10,10)>=ROUNDDOWN(ClassList[BEGINTIJD],10))*($B10<=ClassList[EINDTIJD]),ClassList[UNIEK]),ClassList[UNIEK],0),2),0)","v":0},{"$f":"IFERROR(INDEX(ClassList[],MATCH(SUMPRODUCT((ClassList[DAG]=ClassSchedule[[#Headers],[WOENSDAG]])*(ROUNDDOWN($B10,10)>=ROUNDDOWN(ClassList[BEGINTIJD],10))*($B10<=ClassList[EINDTIJD]),ClassList[UNIEK]),ClassList[UNIEK],0),2),0)","v":0},{"$f":"IFERROR(INDEX(ClassList[],MATCH(SUMPRODUCT((ClassList[DAG]=ClassSchedule[[#Headers],[DONDERDAG]])*(ROUNDDOWN($B10,10)>=ROUNDDOWN(ClassList[BEGINTIJD],10))*($B10<=ClassList[EINDTIJD]),ClassList[UNIEK]),ClassList[UNIEK],0),2),0)","v":0},{"$f":"IFERROR(INDEX(ClassList[],MATCH(SUMPRODUCT((ClassList[DAG]=ClassSchedule[[#Headers],[VRIJDAG]])*(ROUNDDOWN($B10,10)>=ROUNDDOWN(ClassList[BEGINTIJD],10))*($B10<=ClassList[EINDTIJD]),ClassList[UNIEK]),ClassList[UNIEK],0),2),0)","v":0},{"$f":"IFERROR(INDEX(ClassList[],MATCH(SUMPRODUCT((ClassList[DAG]=ClassSchedule[[#Headers],[ZATERDAG]])*(ROUNDDOWN($B10,10)>=ROUNDDOWN(ClassList[BEGINTIJD],10))*($B10<=ClassList[EINDTIJD]),ClassList[UNIEK]),ClassList[UNIEK],0),2),0)","v":0}]
[null,"09:45:00",{"$f":"IFERROR(INDEX(ClassList[],MATCH(SUMPRODUCT((ClassList[DAG]=ClassSchedule[[#Headers],[ZONDAG]])*(ROUNDDOWN($B11,10)>=ROUNDDOWN(ClassList[BEGINTIJD],10))*($B11<=ClassList[EINDTIJD]),ClassList[UNIEK]),ClassList[UNIEK],0),2),0)","v":0},{"$f":"IFERROR(INDEX(ClassList[],MATCH(SUMPRODUCT((ClassList[DAG]=ClassSchedule[[#Headers],[MAANDAG]])*(ROUNDDOWN($B11,10)>=ROUNDDOWN(ClassList[BEGINTIJD],10))*($B11<=ClassList[EINDTIJD]),ClassList[UNIEK]),ClassList[UNIEK],0),2),0)","v":0},{"$f":"IFERROR(INDEX(ClassList[],MATCH(SUMPRODUCT((ClassList[DAG]=ClassSchedule[[#Headers],[DINSDAG]])*(ROUNDDOWN($B11,10)>=ROUNDDOWN(ClassList[BEGINTIJD],10))*($B11<=ClassList[EINDTIJD]),ClassList[UNIEK]),ClassList[UNIEK],0),2),0)","v":0},{"$f":"IFERROR(INDEX(ClassList[],MATCH(SUMPRODUCT((ClassList[DAG]=ClassSchedule[[#Headers],[WOENSDAG]])*(ROUNDDOWN($B11,10)>=ROUNDDOWN(ClassList[BEGINTIJD],10))*($B11<=ClassList[EINDTIJD]),ClassList[UNIEK]),ClassList[UNIEK],0),2),0)","v":0},{"$f":"IFERROR(INDEX(ClassList[],MATCH(SUMPRODUCT((ClassList[DAG]=ClassSchedule[[#Headers],[DONDERDAG]])*(ROUNDDOWN($B11,10)>=ROUNDDOWN(ClassList[BEGINTIJD],10))*($B11<=ClassList[EINDTIJD]),ClassList[UNIEK]),ClassList[UNIEK],0),2),0)","v":0},{"$f":"IFERROR(INDEX(ClassList[],MATCH(SUMPRODUCT((ClassList[DAG]=ClassSchedule[[#Headers],[VRIJDAG]])*(ROUNDDOWN($B11,10)>=ROUNDDOWN(ClassList[BEGINTIJD],10))*($B11<=ClassList[EINDTIJD]),ClassList[UNIEK]),ClassList[UNIEK],0),2),0)","v":0},{"$f":"IFERROR(INDEX(ClassList[],MATCH(SUMPRODUCT((ClassList[DAG]=ClassSchedule[[#Headers],[ZATERDAG]])*(ROUNDDOWN($B11,10)>=ROUNDDOWN(ClassList[BEGINTIJD],10))*($B11<=ClassList[EINDTIJD]),ClassList[UNIEK]),ClassList[UNIEK],0),2),0)","v":0}]
[null,"10:00:00",{"$f":"IFERROR(INDEX(ClassList[],MATCH(SUMPRODUCT((ClassList[DAG]=ClassSchedule[[#Headers],[ZONDAG]])*(ROUNDDOWN($B12,10)>=ROUNDDOWN(ClassList[BEGINTIJD],10))*($B12<=ClassList[EINDTIJD]),ClassList[UNIEK]),ClassList[UNIEK],0),2),0)","v":0},{"$f":"IFERROR(INDEX(ClassList[],MATCH(SUMPRODUCT((ClassList[DAG]=ClassSchedule[[#Headers],[MAANDAG]])*(ROUNDDOWN($B12,10)>=ROUNDDOWN(ClassList[BEGINTIJD],10))*($B12<=ClassList[EINDTIJD]),ClassList[UNIEK]),ClassList[UNIEK],0),2),0)","v":0},{"$f":"IFERROR(INDEX(ClassList[],MATCH(SUMPRODUCT((ClassList[DAG]=ClassSchedule[[#Headers],[DINSDAG]])*(ROUNDDOWN($B12,10)>=ROUNDDOWN(ClassList[BEGINTIJD],10))*($B12<=ClassList[EINDTIJD]),ClassList[UNIEK]),ClassList[UNIEK],0),2),0)","v":0},{"$f":"IFERROR(INDEX(ClassList[],MATCH(SUMPRODUCT((ClassList[DAG]=ClassSchedule[[#Headers],[WOENSDAG]])*(ROUNDDOWN($B12,10)>=ROUNDDOWN(ClassList[BEGINTIJD],10))*($B12<=ClassList[EINDTIJD]),ClassList[UNIEK]),ClassList[UNIEK],0),2),0)","v":0},{"$f":"IFERROR(INDEX(ClassList[],MATCH(SUMPRODUCT((ClassList[DAG]=ClassSchedule[[#Headers],[DONDERDAG]])*(ROUNDDOWN($B12,10)>=ROUNDDOWN(ClassList[BEGINTIJD],10))*($B12<=ClassList[EINDTIJD]),ClassList[UNIEK]),ClassList[UNIEK],0),2),0)","v":0},{"$f":"IFERROR(INDEX(ClassList[],MATCH(SUMPRODUCT((ClassList[DAG]=ClassSchedule[[#Headers],[VRIJDAG]])*(ROUNDDOWN($B12,10)>=ROUNDDOWN(ClassList[BEGINTIJD],10))*($B12<=ClassList[EINDTIJD]),ClassList[UNIEK]),ClassList[UNIEK],0),2),0)","v":0},{"$f":"IFERROR(INDEX(ClassList[],MATCH(SUMPRODUCT((ClassList[DAG]=ClassSchedule[[#Headers],[ZATERDAG]])*(ROUNDDOWN($B12,10)>=ROUNDDOWN(ClassList[BEGINTIJD],10))*($B12<=ClassList[EINDTIJD]),ClassList[UNIEK]),ClassList[UNIEK],0),2),0)","v":0}]
[null,"10:15:00",{"$f":"IFERROR(INDEX(ClassList[],MATCH(SUMPRODUCT((ClassList[DAG]=ClassSchedule[[#Headers],[ZONDAG]])*(ROUNDDOWN($B13,10)>=ROUNDDOWN(ClassList[BEGINTIJD],10))*($B13<=ClassList[EINDTIJD]),ClassList[UNIEK]),ClassList[UNIEK],0),2),0)","v":0},{"$f":"IFERROR(INDEX(ClassList[],MATCH(SUMPRODUCT((ClassList[DAG]=ClassSchedule[[#Headers],[MAANDAG]])*(ROUNDDOWN($B13,10)>=ROUNDDOWN(ClassList[BEGINTIJD],10))*($B13<=ClassList[EINDTIJD]),ClassList[UNIEK]),ClassList[UNIEK],0),2),0)","v":0},{"$f":"IFERROR(INDEX(ClassList[],MATCH(SUMPRODUCT((ClassList[DAG]=ClassSchedule[[#Headers],[DINSDAG]])*(ROUNDDOWN($B13,10)>=ROUNDDOWN(ClassList[BEGINTIJD],10))*($B13<=ClassList[EINDTIJD]),ClassList[UNIEK]),ClassList[UNIEK],0),2),0)","v":0},{"$f":"IFERROR(INDEX(ClassList[],MATCH(SUMPRODUCT((ClassList[DAG]=ClassSchedule[[#Headers],[WOENSDAG]])*(ROUNDDOWN($B13,10)>=ROUNDDOWN(ClassList[BEGINTIJD],10))*($B13<=ClassList[EINDTIJD]),ClassList[UNIEK]),ClassList[UNIEK],0),2),0)","v":0},{"$f":"IFERROR(INDEX(ClassList[],MATCH(SUMPRODUCT((ClassList[DAG]=ClassSchedule[[#Headers],[DONDERDAG]])*(ROUNDDOWN($B13,10)>=ROUNDDOWN(ClassList[BEGINTIJD],10))*($B13<=ClassList[EINDTIJD]),ClassList[UNIEK]),ClassList[UNIEK],0),2),0)","v":0},{"$f":"IFERROR(INDEX(ClassList[],MATCH(SUMPRODUCT((ClassList[DAG]=ClassSchedule[[#Headers],[VRIJDAG]])*(ROUNDDOWN($B13,10)>=ROUNDDOWN(ClassList[BEGINTIJD],10))*($B13<=ClassList[EINDTIJD]),ClassList[UNIEK]),ClassList[UNIEK],0),2),0)","v":0},{"$f":"IFERROR(INDEX(ClassList[],MATCH(SUMPRODUCT((ClassList[DAG]=ClassSchedule[[#Headers],[ZATERDAG]])*(ROUNDDOWN($B13,10)>=ROUNDDOWN(ClassList[BEGINTIJD],10))*($B13<=ClassList[EINDTIJD]),ClassList[UNIEK]),ClassList[UNIEK],0),2),0)","v":0}]
[null,"10:30:00",{"$f":"IFERROR(INDEX(ClassList[],MATCH(SUMPRODUCT((ClassList[DAG]=ClassSchedule[[#Headers],[ZONDAG]])*(ROUNDDOWN($B14,10)>=ROUNDDOWN(ClassList[BEGINTIJD],10))*($B14<=ClassList[EINDTIJD]),ClassList[UNIEK]),ClassList[UNIEK],0),2),0)","v":0},{"$f":"IFERROR(INDEX(ClassList[],MATCH(SUMPRODUCT((ClassList[DAG]=ClassSchedule[[#Headers],[MAANDAG]])*(ROUNDDOWN($B14,10)>=ROUNDDOWN(ClassList[BEGINTIJD],10))*($B14<=ClassList[EINDTIJD]),ClassList[UNIEK]),ClassList[UNIEK],0),2),0)","v":0},{"$f":"IFERROR(INDEX(ClassList[],MATCH(SUMPRODUCT((ClassList[DAG]=ClassSchedule[[#Headers],[DINSDAG]])*(ROUNDDOWN($B14,10)>=ROUNDDOWN(ClassList[BEGINTIJD],10))*($B14<=ClassList[EINDTIJD]),ClassList[UNIEK]),ClassList[UNIEK],0),2),0)","v":0},{"$f":"IFERROR(INDEX(ClassList[],MATCH(SUMPRODUCT((ClassList[DAG]=ClassSchedule[[#Headers],[WOENSDAG]])*(ROUNDDOWN($B14,10)>=ROUNDDOWN(ClassList[BEGINTIJD],10))*($B14<=ClassList[EINDTIJD]),ClassList[UNIEK]),ClassList[UNIEK],0),2),0)","v":0},{"$f":"IFERROR(INDEX(ClassList[],MATCH(SUMPRODUCT((ClassList[DAG]=ClassSchedule[[#Headers],[DONDERDAG]])*(ROUNDDOWN($B14,10)>=ROUNDDOWN(ClassList[BEGINTIJD],10))*($B14<=ClassList[EINDTIJD]),ClassList[UNIEK]),ClassList[UNIEK],0),2),0)","v":0},{"$f":"IFERROR(INDEX(ClassList[],MATCH(SUMPRODUCT((ClassList[DAG]=ClassSchedule[[#Headers],[VRIJDAG]])*(ROUNDDOWN($B14,10)>=ROUNDDOWN(ClassList[BEGINTIJD],10))*($B14<=ClassList[EINDTIJD]),ClassList[UNIEK]),ClassList[UNIEK],0),2),0)","v":0},{"$f":"IFERROR(INDEX(ClassList[],MATCH(SUMPRODUCT((ClassList[DAG]=ClassSchedule[[#Headers],[ZATERDAG]])*(ROUNDDOWN($B14,10)>=ROUNDDOWN(ClassList[BEGINTIJD],10))*($B14<=ClassList[EINDTIJD]),ClassList[UNIEK]),ClassList[UNIEK],0),2),0)","v":0}]
[null,"10:45:00",{"$f":"IFERROR(INDEX(ClassList[],MATCH(SUMPRODUCT((ClassList[DAG]=ClassSchedule[[#Headers],[ZONDAG]])*(ROUNDDOWN($B15,10)>=ROUNDDOWN(ClassList[BEGINTIJD],10))*($B15<=ClassList[EINDTIJD]),ClassList[UNIEK]),ClassList[UNIEK],0),2),0)","v":0},{"$f":"IFERROR(INDEX(ClassList[],MATCH(SUMPRODUCT((ClassList[DAG]=ClassSchedule[[#Headers],[MAANDAG]])*(ROUNDDOWN($B15,10)>=ROUNDDOWN(ClassList[BEGINTIJD],10))*($B15<=ClassList[EINDTIJD]),ClassList[UNIEK]),ClassList[UNIEK],0),2),0)","v":0},{"$f":"IFERROR(INDEX(ClassList[],MATCH(SUMPRODUCT((ClassList[DAG]=ClassSchedule[[#Headers],[DINSDAG]])*(ROUNDDOWN($B15,10)>=ROUNDDOWN(ClassList[BEGINTIJD],10))*($B15<=ClassList[EINDTIJD]),ClassList[UNIEK]),ClassList[UNIEK],0),2),0)","v":0},{"$f":"IFERROR(INDEX(ClassList[],MATCH(SUMPRODUCT((ClassList[DAG]=ClassSchedule[[#Headers],[WOENSDAG]])*(ROUNDDOWN($B15,10)>=ROUNDDOWN(ClassList[BEGINTIJD],10))*($B15<=ClassList[EINDTIJD]),ClassList[UNIEK]),ClassList[UNIEK],0),2),0)","v":0},{"$f":"IFERROR(INDEX(ClassList[],MATCH(SUMPRODUCT((ClassList[DAG]=ClassSchedule[[#Headers],[DONDERDAG]])*(ROUNDDOWN($B15,10)>=ROUNDDOWN(ClassList[BEGINTIJD],10))*($B15<=ClassList[EINDTIJD]),ClassList[UNIEK]),ClassList[UNIEK],0),2),0)","v":0},{"$f":"IFERROR(INDEX(ClassList[],MATCH(SUMPRODUCT((ClassList[DAG]=ClassSchedule[[#Headers],[VRIJDAG]])*(ROUNDDOWN($B15,10)>=ROUNDDOWN(ClassList[BEGINTIJD],10))*($B15<=ClassList[EINDTIJD]),ClassList[UNIEK]),ClassList[UNIEK],0),2),0)","v":0},{"$f":"IFERROR(INDEX(ClassList[],MATCH(SUMPRODUCT((ClassList[DAG]=ClassSchedule[[#Headers],[ZATERDAG]])*(ROUNDDOWN($B15,10)>=ROUNDDOWN(ClassList[BEGINTIJD],10))*($B15<=ClassList[EINDTIJD]),ClassList[UNIEK]),ClassList[UNIEK],0),2),0)","v":0}]
[null,"11:00:00",{"$f":"IFERROR(INDEX(ClassList[],MATCH(SUMPRODUCT((ClassList[DAG]=ClassSchedule[[#Headers],[ZONDAG]])*(ROUNDDOWN($B16,10)>=ROUNDDOWN(ClassList[BEGINTIJD],10))*($B16<=ClassList[EINDTIJD]),ClassList[UNIEK]),ClassList[UNIEK],0),2),0)","v":0},{"$f":"IFERROR(INDEX(ClassList[],MATCH(SUMPRODUCT((ClassList[DAG]=ClassSchedule[[#Headers],[MAANDAG]])*(ROUNDDOWN($B16,10)>=ROUNDDOWN(ClassList[BEGINTIJD],10))*($B16<=ClassList[EINDTIJD]),ClassList[UNIEK]),ClassList[UNIEK],0),2),0)","v":0},{"$f":"IFERROR(INDEX(ClassList[],MATCH(SUMPRODUCT((ClassList[DAG]=ClassSchedule[[#Headers],[DINSDAG]])*(ROUNDDOWN($B16,10)>=ROUNDDOWN(ClassList[BEGINTIJD],10))*($B16<=ClassList[EINDTIJD]),ClassList[UNIEK]),ClassList[UNIEK],0),2),0)","v":"HLO-295"},{"$f":"IFERROR(INDEX(ClassList[],MATCH(SUMPRODUCT((ClassList[DAG]=ClassSchedule[[#Headers],[WOENSDAG]])*(ROUNDDOWN($B16,10)>=ROUNDDOWN(ClassList[BEGINTIJD],10))*($B16<=ClassList[EINDTIJD]),ClassList[UNIEK]),ClassList[UNIEK],0),2),0)","v":0},{"$f":"IFERROR(INDEX(ClassList[],MATCH(SUMPRODUCT((ClassList[DAG]=ClassSchedule[[#Headers],[DONDERDAG]])*(ROUNDDOWN($B16,10)>=ROUNDDOWN(ClassList[BEGINTIJD],10))*($B16<=ClassList[EINDTIJD]),ClassList[UNIEK]),ClassList[UNIEK],0),2),0)","v":"HLO-295"},{"$f":"IFERROR(INDEX(ClassList[],MATCH(SUMPRODUCT((ClassList[DAG]=ClassSchedule[[#Headers],[VRIJDAG]])*(ROUNDDOWN($B16,10)>=ROUNDDOWN(ClassList[BEGINTIJD],10))*($B16<=ClassList[EINDTIJD]),ClassList[UNIEK]),ClassList[UNIEK],0),2),0)","v":0},{"$f":"IFERROR(INDEX(ClassList[],MATCH(SUMPRODUCT((ClassList[DAG]=ClassSchedule[[#Headers],[ZATERDAG]])*(ROUNDDOWN($B16,10)>=ROUNDDOWN(ClassList[BEGINTIJD],10))*($B16<=ClassList[EINDTIJD]),ClassList[UNIEK]),ClassList[UNIEK],0),2),0)","v":0}]
[null,"11:15:00",{"$f":"IFERROR(INDEX(ClassList[],MATCH(SUMPRODUCT((ClassList[DAG]=ClassSchedule[[#Headers],[ZONDAG]])*(ROUNDDOWN($B17,10)>=ROUNDDOWN(ClassList[BEGINTIJD],10))*($B17<=ClassList[EINDTIJD]),ClassList[UNIEK]),ClassList[UNIEK],0),2),0)","v":0},{"$f":"IFERROR(INDEX(ClassList[],MATCH(SUMPRODUCT((ClassList[DAG]=ClassSchedule[[#Headers],[MAANDAG]])*(ROUNDDOWN($B17,10)>=ROUNDDOWN(ClassList[BEGINTIJD],10))*($B17<=ClassList[EINDTIJD]),ClassList[UNIEK]),ClassList[UNIEK],0),2),0)","v":0},{"$f":"IFERROR(INDEX(ClassList[],MATCH(SUMPRODUCT((ClassList[DAG]=ClassSchedule[[#Headers],[DINSDAG]])*(ROUNDDOWN($B17,10)>=ROUNDDOWN(ClassList[BEGINTIJD],10))*($B17<=ClassList[EINDTIJD]),ClassList[UNIEK]),ClassList[UNIEK],0),2),0)","v":"HLO-295"},{"$f":"IFERROR(INDEX(ClassList[],MATCH(SUMPRODUCT((ClassList[DAG]=ClassSchedule[[#Headers],[WOENSDAG]])*(ROUNDDOWN($B17,10)>=ROUNDDOWN(ClassList[BEGINTIJD],10))*($B17<=ClassList[EINDTIJD]),ClassList[UNIEK]),ClassList[UNIEK],0),2),0)","v":0},{"$f":"IFERROR(INDEX(ClassList[],MATCH(SUMPRODUCT((ClassList[DAG]=ClassSchedule[[#Headers],[DONDERDAG]])*(ROUNDDOWN($B17,10)>=ROUNDDOWN(ClassList[BEGINTIJD],10))*($B17<=ClassList[EINDTIJD]),ClassList[UNIEK]),ClassList[UNIEK],0),2),0)","v":"HLO-295"},{"$f":"IFERROR(INDEX(ClassList[],MATCH(SUMPRODUCT((ClassList[DAG]=ClassSchedule[[#Headers],[VRIJDAG]])*(ROUNDDOWN($B17,10)>=ROUNDDOWN(ClassList[BEGINTIJD],10))*($B17<=ClassList[EINDTIJD]),ClassList[UNIEK]),ClassList[UNIEK],0),2),0)","v":0},{"$f":"IFERROR(INDEX(ClassList[],MATCH(SUMPRODUCT((ClassList[DAG]=ClassSchedule[[#Headers],[ZATERDAG]])*(ROUNDDOWN($B17,10)>=ROUNDDOWN(ClassList[BEGINTIJD],10))*($B17<=ClassList[EINDTIJD]),ClassList[UNIEK]),ClassList[UNIEK],0),2),0)","v":0}]
[null,"11:30:00",{"$f":"IFERROR(INDEX(ClassList[],MATCH(SUMPRODUCT((ClassList[DAG]=ClassSchedule[[#Headers],[ZONDAG]])*(ROUNDDOWN($B18,10)>=ROUNDDOWN(ClassList[BEGINTIJD],10))*($B18<=ClassList[EINDTIJD]),ClassList[UNIEK]),ClassList[UNIEK],0),2),0)","v":0},{"$f":"IFERROR(INDEX(ClassList[],MATCH(SUMPRODUCT((ClassList[DAG]=ClassSchedule[[#Headers],[MAANDAG]])*(ROUNDDOWN($B18,10)>=ROUNDDOWN(ClassList[BEGINTIJD],10))*($B18<=ClassList[EINDTIJD]),ClassList[UNIEK]),ClassList[UNIEK],0),2),0)","v":0},{"$f":"IFERROR(INDEX(ClassList[],MATCH(SUMPRODUCT((ClassList[DAG]=ClassSchedule[[#Headers],[DINSDAG]])*(ROUNDDOWN($B18,10)>=ROUNDDOWN(ClassList[BEGINTIJD],10))*($B18<=ClassList[EINDTIJD]),ClassList[UNIEK]),ClassList[UNIEK],0),2),0)","v":"HLO-295"},{"$f":"IFERROR(INDEX(ClassList[],MATCH(SUMPRODUCT((ClassList[DAG]=ClassSchedule[[#Headers],[WOENSDAG]])*(ROUNDDOWN($B18,10)>=ROUNDDOWN(ClassList[BEGINTIJD],10))*($B18<=ClassList[EINDTIJD]),ClassList[UNIEK]),ClassList[UNIEK],0),2),0)","v":0},{"$f":"IFERROR(INDEX(ClassList[],MATCH(SUMPRODUCT((ClassList[DAG]=ClassSchedule[[#Headers],[DONDERDAG]])*(ROUNDDOWN($B18,10)>=ROUNDDOWN(ClassList[BEGINTIJD],10))*($B18<=ClassList[EINDTIJD]),ClassList[UNIEK]),ClassList[UNIEK],0),2),0)","v":"HLO-295"},{"$f":"IFERROR(INDEX(ClassList[],MATCH(SUMPRODUCT((ClassList[DAG]=ClassSchedule[[#Headers],[VRIJDAG]])*(ROUNDDOWN($B18,10)>=ROUNDDOWN(ClassList[BEGINTIJD],10))*($B18<=ClassList[EINDTIJD]),ClassList[UNIEK]),ClassList[UNIEK],0),2),0)","v":0},{"$f":"IFERROR(INDEX(ClassList[],MATCH(SUMPRODUCT((ClassList[DAG]=ClassSchedule[[#Headers],[ZATERDAG]])*(ROUNDDOWN($B18,10)>=ROUNDDOWN(ClassList[BEGINTIJD],10))*($B18<=ClassList[EINDTIJD]),ClassList[UNIEK]),ClassList[UNIEK],0),2),0)","v":0}]
[null,"11:45:00",{"$f":"IFERROR(INDEX(ClassList[],MATCH(SUMPRODUCT((ClassList[DAG]=ClassSchedule[[#Headers],[ZONDAG]])*(ROUNDDOWN($B19,10)>=ROUNDDOWN(ClassList[BEGINTIJD],10))*($B19<=ClassList[EINDTIJD]),ClassList[UNIEK]),ClassList[UNIEK],0),2),0)","v":0},{"$f":"IFERROR(INDEX(ClassList[],MATCH(SUMPRODUCT((ClassList[DAG]=ClassSchedule[[#Headers],[MAANDAG]])*(ROUNDDOWN($B19,10)>=ROUNDDOWN(ClassList[BEGINTIJD],10))*($B19<=ClassList[EINDTIJD]),ClassList[UNIEK]),ClassList[UNIEK],0),2),0)","v":0},{"$f":"IFERROR(INDEX(ClassList[],MATCH(SUMPRODUCT((ClassList[DAG]=ClassSchedule[[#Headers],[DINSDAG]])*(ROUNDDOWN($B19,10)>=ROUNDDOWN(ClassList[BEGINTIJD],10))*($B19<=ClassList[EINDTIJD]),ClassList[UNIEK]),ClassList[UNIEK],0),2),0)","v":"HLO-295"},{"$f":"IFERROR(INDEX(ClassList[],MATCH(SUMPRODUCT((ClassList[DAG]=ClassSchedule[[#Headers],[WOENSDAG]])*(ROUNDDOWN($B19,10)>=ROUNDDOWN(ClassList[BEGINTIJD],10))*($B19<=ClassList[EINDTIJD]),ClassList[UNIEK]),ClassList[UNIEK],0),2),0)","v":0},{"$f":"IFERROR(INDEX(ClassList[],MATCH(SUMPRODUCT((ClassList[DAG]=ClassSchedule[[#Headers],[DONDERDAG]])*(ROUNDDOWN($B19,10)>=ROUNDDOWN(ClassList[BEGINTIJD],10))*($B19<=ClassList[EINDTIJD]),ClassList[UNIEK]),ClassList[UNIEK],0),2),0)","v":"HLO-295"},{"$f":"IFERROR(INDEX(ClassList[],MATCH(SUMPRODUCT((ClassList[DAG]=ClassSchedule[[#Headers],[VRIJDAG]])*(ROUNDDOWN($B19,10)>=ROUNDDOWN(ClassList[BEGINTIJD],10))*($B19<=ClassList[EINDTIJD]),ClassList[UNIEK]),ClassList[UNIEK],0),2),0)","v":0},{"$f":"IFERROR(INDEX(ClassList[],MATCH(SUMPRODUCT((ClassList[DAG]=ClassSchedule[[#Headers],[ZATERDAG]])*(ROUNDDOWN($B19,10)>=ROUNDDOWN(ClassList[BEGINTIJD],10))*($B19<=ClassList[EINDTIJD]),ClassList[UNIEK]),ClassList[UNIEK],0),2),0)","v":0}]
[null,"12:00:00",{"$f":"IFERROR(INDEX(ClassList[],MATCH(SUMPRODUCT((ClassList[DAG]=ClassSchedule[[#Headers],[ZONDAG]])*(ROUNDDOWN($B20,10)>=ROUNDDOWN(ClassList[BEGINTIJD],10))*($B20<=ClassList[EINDTIJD]),ClassList[UNIEK]),ClassList[UNIEK],0),2),0)","v":0},{"$f":"IFERROR(INDEX(ClassList[],MATCH(SUMPRODUCT((ClassList[DAG]=ClassSchedule[[#Headers],[MAANDAG]])*(ROUNDDOWN($B20,10)>=ROUNDDOWN(ClassList[BEGINTIJD],10))*($B20<=ClassList[EINDTIJD]),ClassList[UNIEK]),ClassList[UNIEK],0),2),0)","v":0},{"$f":"IFERROR(INDEX(ClassList[],MATCH(SUMPRODUCT((ClassList[DAG]=ClassSchedule[[#Headers],[DINSDAG]])*(ROUNDDOWN($B20,10)>=ROUNDDOWN(ClassList[BEGINTIJD],10))*($B20<=ClassList[EINDTIJD]),ClassList[UNIEK]),ClassList[UNIEK],0),2),0)","v":"HLO-295"},{"$f":"IFERROR(INDEX(ClassList[],MATCH(SUMPRODUCT((ClassList[DAG]=ClassSchedule[[#Headers],[WOENSDAG]])*(ROUNDDOWN($B20,10)>=ROUNDDOWN(ClassList[BEGINTIJD],10))*($B20<=ClassList[EINDTIJD]),ClassList[UNIEK]),ClassList[UNIEK],0),2),0)","v":0},{"$f":"IFERROR(INDEX(ClassList[],MATCH(SUMPRODUCT((ClassList[DAG]=ClassSchedule[[#Headers],[DONDERDAG]])*(ROUNDDOWN($B20,10)>=ROUNDDOWN(ClassList[BEGINTIJD],10))*($B20<=ClassList[EINDTIJD]),ClassList[UNIEK]),ClassList[UNIEK],0),2),0)","v":"HLO-295"},{"$f":"IFERROR(INDEX(ClassList[],MATCH(SUMPRODUCT((ClassList[DAG]=ClassSchedule[[#Headers],[VRIJDAG]])*(ROUNDDOWN($B20,10)>=ROUNDDOWN(ClassList[BEGINTIJD],10))*($B20<=ClassList[EINDTIJD]),ClassList[UNIEK]),ClassList[UNIEK],0),2),0)","v":0},{"$f":"IFERROR(INDEX(ClassList[],MATCH(SUMPRODUCT((ClassList[DAG]=ClassSchedule[[#Headers],[ZATERDAG]])*(ROUNDDOWN($B20,10)>=ROUNDDOWN(ClassList[BEGINTIJD],10))*($B20<=ClassList[EINDTIJD]),ClassList[UNIEK]),ClassList[UNIEK],0),2),0)","v":0}]
[null,"12:15:00",{"$f":"IFERROR(INDEX(ClassList[],MATCH(SUMPRODUCT((ClassList[DAG]=ClassSchedule[[#Headers],[ZONDAG]])*(ROUNDDOWN($B21,10)>=ROUNDDOWN(ClassList[BEGINTIJD],10))*($B21<=ClassList[EINDTIJD]),ClassList[UNIEK]),ClassList[UNIEK],0),2),0)","v":0},{"$f":"IFERROR(INDEX(ClassList[],MATCH(SUMPRODUCT((ClassList[DAG]=ClassSchedule[[#Headers],[MAANDAG]])*(ROUNDDOWN($B21,10)>=ROUNDDOWN(ClassList[BEGINTIJD],10))*($B21<=ClassList[EINDTIJD]),ClassList[UNIEK]),ClassList[UNIEK],0),2),0)","v":0},{"$f":"IFERROR(INDEX(ClassList[],MATCH(SUMPRODUCT((ClassList[DAG]=ClassSchedule[[#Headers],[DINSDAG]])*(ROUNDDOWN($B21,10)>=ROUNDDOWN(ClassList[BEGINTIJD],10))*($B21<=ClassList[EINDTIJD]),ClassList[UNIEK]),ClassList[UNIEK],0),2),0)","v":0},{"$f":"IFERROR(INDEX(ClassList[],MATCH(SUMPRODUCT((ClassList[DAG]=ClassSchedule[[#Headers],[WOENSDAG]])*(ROUNDDOWN($B21,10)>=ROUNDDOWN(ClassList[BEGINTIJD],10))*($B21<=ClassList[EINDTIJD]),ClassList[UNIEK]),ClassList[UNIEK],0),2),0)","v":0},{"$f":"IFERROR(INDEX(ClassList[],MATCH(SUMPRODUCT((ClassList[DAG]=ClassSchedule[[#Headers],[DONDERDAG]])*(ROUNDDOWN($B21,10)>=ROUNDDOWN(ClassList[BEGINTIJD],10))*($B21<=ClassList[EINDTIJD]),ClassList[UNIEK]),ClassList[UNIEK],0),2),0)","v":0},{"$f":"IFERROR(INDEX(ClassList[],MATCH(SUMPRODUCT((ClassList[DAG]=ClassSchedule[[#Headers],[VRIJDAG]])*(ROUNDDOWN($B21,10)>=ROUNDDOWN(ClassList[BEGINTIJD],10))*($B21<=ClassList[EINDTIJD]),ClassList[UNIEK]),ClassList[UNIEK],0),2),0)","v":0},{"$f":"IFERROR(INDEX(ClassList[],MATCH(SUMPRODUCT((ClassList[DAG]=ClassSchedule[[#Headers],[ZATERDAG]])*(ROUNDDOWN($B21,10)>=ROUNDDOWN(ClassList[BEGINTIJD],10))*($B21<=ClassList[EINDTIJD]),ClassList[UNIEK]),ClassList[UNIEK],0),2),0)","v":0}]
[null,"12:30:00",{"$f":"IFERROR(INDEX(ClassList[],MATCH(SUMPRODUCT((ClassList[DAG]=ClassSchedule[[#Headers],[ZONDAG]])*(ROUNDDOWN($B22,10)>=ROUNDDOWN(ClassList[BEGINTIJD],10))*($B22<=ClassList[EINDTIJD]),ClassList[UNIEK]),ClassList[UNIEK],0),2),0)","v":0},{"$f":"IFERROR(INDEX(ClassList[],MATCH(SUMPRODUCT((ClassList[DAG]=ClassSchedule[[#Headers],[MAANDAG]])*(ROUNDDOWN($B22,10)>=ROUNDDOWN(ClassList[BEGINTIJD],10))*($B22<=ClassList[EINDTIJD]),ClassList[UNIEK]),ClassList[UNIEK],0),2),0)","v":0},{"$f":"IFERROR(INDEX(ClassList[],MATCH(SUMPRODUCT((ClassList[DAG]=ClassSchedule[[#Headers],[DINSDAG]])*(ROUNDDOWN($B22,10)>=ROUNDDOWN(ClassList[BEGINTIJD],10))*($B22<=ClassList[EINDTIJD]),ClassList[UNIEK]),ClassList[UNIEK],0),2),0)","v":0},{"$f":"IFERROR(INDEX(ClassList[],MATCH(SUMPRODUCT((ClassList[DAG]=ClassSchedule[[#Headers],[WOENSDAG]])*(ROUNDDOWN($B22,10)>=ROUNDDOWN(ClassList[BEGINTIJD],10))*($B22<=ClassList[EINDTIJD]),ClassList[UNIEK]),ClassList[UNIEK],0),2),0)","v":0},{"$f":"IFERROR(INDEX(ClassList[],MATCH(SUMPRODUCT((ClassList[DAG]=ClassSchedule[[#Headers],[DONDERDAG]])*(ROUNDDOWN($B22,10)>=ROUNDDOWN(ClassList[BEGINTIJD],10))*($B22<=ClassList[EINDTIJD]),ClassList[UNIEK]),ClassList[UNIEK],0),2),0)","v":0},{"$f":"IFERROR(INDEX(ClassList[],MATCH(SUMPRODUCT((ClassList[DAG]=ClassSchedule[[#Headers],[VRIJDAG]])*(ROUNDDOWN($B22,10)>=ROUNDDOWN(ClassList[BEGINTIJD],10))*($B22<=ClassList[EINDTIJD]),ClassList[UNIEK]),ClassList[UNIEK],0),2),0)","v":0},{"$f":"IFERROR(INDEX(ClassList[],MATCH(SUMPRODUCT((ClassList[DAG]=ClassSchedule[[#Headers],[ZATERDAG]])*(ROUNDDOWN($B22,10)>=ROUNDDOWN(ClassList[BEGINTIJD],10))*($B22<=ClassList[EINDTIJD]),ClassList[UNIEK]),ClassList[UNIEK],0),2),0)","v":0}]
[null,"12:45:00",{"$f":"IFERROR(INDEX(ClassList[],MATCH(SUMPRODUCT((ClassList[DAG]=ClassSchedule[[#Headers],[ZONDAG]])*(ROUNDDOWN($B23,10)>=ROUNDDOWN(ClassList[BEGINTIJD],10))*($B23<=ClassList[EINDTIJD]),ClassList[UNIEK]),ClassList[UNIEK],0),2),0)","v":0},{"$f":"IFERROR(INDEX(ClassList[],MATCH(SUMPRODUCT((ClassList[DAG]=ClassSchedule[[#Headers],[MAANDAG]])*(ROUNDDOWN($B23,10)>=ROUNDDOWN(ClassList[BEGINTIJD],10))*($B23<=ClassList[EINDTIJD]),ClassList[UNIEK]),ClassList[UNIEK],0),2),0)","v":0},{"$f":"IFERROR(INDEX(ClassList[],MATCH(SUMPRODUCT((ClassList[DAG]=ClassSchedule[[#Headers],[DINSDAG]])*(ROUNDDOWN($B23,10)>=ROUNDDOWN(ClassList[BEGINTIJD],10))*($B23<=ClassList[EINDTIJD]),ClassList[UNIEK]),ClassList[UNIEK],0),2),0)","v":0},{"$f":"IFERROR(INDEX(ClassList[],MATCH(SUMPRODUCT((ClassList[DAG]=ClassSchedule[[#Headers],[WOENSDAG]])*(ROUNDDOWN($B23,10)>=ROUNDDOWN(ClassList[BEGINTIJD],10))*($B23<=ClassList[EINDTIJD]),ClassList[UNIEK]),ClassList[UNIEK],0),2),0)","v":0},{"$f":"IFERROR(INDEX(ClassList[],MATCH(SUMPRODUCT((ClassList[DAG]=ClassSchedule[[#Headers],[DONDERDAG]])*(ROUNDDOWN($B23,10)>=ROUNDDOWN(ClassList[BEGINTIJD],10))*($B23<=ClassList[EINDTIJD]),ClassList[UNIEK]),ClassList[UNIEK],0),2),0)","v":0},{"$f":"IFERROR(INDEX(ClassList[],MATCH(SUMPRODUCT((ClassList[DAG]=ClassSchedule[[#Headers],[VRIJDAG]])*(ROUNDDOWN($B23,10)>=ROUNDDOWN(ClassList[BEGINTIJD],10))*($B23<=ClassList[EINDTIJD]),ClassList[UNIEK]),ClassList[UNIEK],0),2),0)","v":0},{"$f":"IFERROR(INDEX(ClassList[],MATCH(SUMPRODUCT((ClassList[DAG]=ClassSchedule[[#Headers],[ZATERDAG]])*(ROUNDDOWN($B23,10)>=ROUNDDOWN(ClassList[BEGINTIJD],10))*($B23<=ClassList[EINDTIJD]),ClassList[UNIEK]),ClassList[UNIEK],0),2),0)","v":0}]
[null,"13:00:00",{"$f":"IFERROR(INDEX(ClassList[],MATCH(SUMPRODUCT((ClassList[DAG]=ClassSchedule[[#Headers],[ZONDAG]])*(ROUNDDOWN($B24,10)>=ROUNDDOWN(ClassList[BEGINTIJD],10))*($B24<=ClassList[EINDTIJD]),ClassList[UNIEK]),ClassList[UNIEK],0),2),0)","v":0},{"$f":"IFERROR(INDEX(ClassList[],MATCH(SUMPRODUCT((ClassList[DAG]=ClassSchedule[[#Headers],[MAANDAG]])*(ROUNDDOWN($B24,10)>=ROUNDDOWN(ClassList[BEGINTIJD],10))*($B24<=ClassList[EINDTIJD]),ClassList[UNIEK]),ClassList[UNIEK],0),2),0)","v":"SC-121"},{"$f":"IFERROR(INDEX(ClassList[],MATCH(SUMPRODUCT((ClassList[DAG]=ClassSchedule[[#Headers],[DINSDAG]])*(ROUNDDOWN($B24,10)>=ROUNDDOWN(ClassList[BEGINTIJD],10))*($B24<=ClassList[EINDTIJD]),ClassList[UNIEK]),ClassList[UNIEK],0),2),0)","v":0},{"$f":"IFERROR(INDEX(ClassList[],MATCH(SUMPRODUCT((ClassList[DAG]=ClassSchedule[[#Headers],[WOENSDAG]])*(ROUNDDOWN($B24,10)>=ROUNDDOWN(ClassList[BEGINTIJD],10))*($B24<=ClassList[EINDTIJD]),ClassList[UNIEK]),ClassList[UNIEK],0),2),0)","v":"SC-121"},{"$f":"IFERROR(INDEX(ClassList[],MATCH(SUMPRODUCT((ClassList[DAG]=ClassSchedule[[#Headers],[DONDERDAG]])*(ROUNDDOWN($B24,10)>=ROUNDDOWN(ClassList[BEGINTIJD],10))*($B24<=ClassList[EINDTIJD]),ClassList[UNIEK]),ClassList[UNIEK],0),2),0)","v":0},{"$f":"IFERROR(INDEX(ClassList[],MATCH(SUMPRODUCT((ClassList[DAG]=ClassSchedule[[#Headers],[VRIJDAG]])*(ROUNDDOWN($B24,10)>=ROUNDDOWN(ClassList[BEGINTIJD],10))*($B24<=ClassList[EINDTIJD]),ClassList[UNIEK]),ClassList[UNIEK],0),2),0)","v":0},{"$f":"IFERROR(INDEX(ClassList[],MATCH(SUMPRODUCT((ClassList[DAG]=ClassSchedule[[#Headers],[ZATERDAG]])*(ROUNDDOWN($B24,10)>=ROUNDDOWN(ClassList[BEGINTIJD],10))*($B24<=ClassList[EINDTIJD]),ClassList[UNIEK]),ClassList[UNIEK],0),2),0)","v":0}]
[null,"13:15:00",{"$f":"IFERROR(INDEX(ClassList[],MATCH(SUMPRODUCT((ClassList[DAG]=ClassSchedule[[#Headers],[ZONDAG]])*(ROUNDDOWN($B25,10)>=ROUNDDOWN(ClassList[BEGINTIJD],10))*($B25<=ClassList[EINDTIJD]),ClassList[UNIEK]),ClassList[UNIEK],0),2),0)","v":0},{"$f":"IFERROR(INDEX(ClassList[],MATCH(SUMPRODUCT((ClassList[DAG]=ClassSchedule[[#Headers],[MAANDAG]])*(ROUNDDOWN($B25,10)>=ROUNDDOWN(ClassList[BEGINTIJD],10))*($B25<=ClassList[EINDTIJD]),ClassList[UNIEK]),ClassList[UNIEK],0),2),0)","v":"SC-121"},{"$f":"IFERROR(INDEX(ClassList[],MATCH(SUMPRODUCT((ClassList[DAG]=ClassSchedule[[#Headers],[DINSDAG]])*(ROUNDDOWN($B25,10)>=ROUNDDOWN(ClassList[BEGINTIJD],10))*($B25<=ClassList[EINDTIJD]),ClassList[UNIEK]),ClassList[UNIEK],0),2),0)","v":0},{"$f":"IFERROR(INDEX(ClassList[],MATCH(SUMPRODUCT((ClassList[DAG]=ClassSchedule[[#Headers],[WOENSDAG]])*(ROUNDDOWN($B25,10)>=ROUNDDOWN(ClassList[BEGINTIJD],10))*($B25<=ClassList[EINDTIJD]),ClassList[UNIEK]),ClassList[UNIEK],0),2),0)","v":"SC-121"},{"$f":"IFERROR(INDEX(ClassList[],MATCH(SUMPRODUCT((ClassList[DAG]=ClassSchedule[[#Headers],[DONDERDAG]])*(ROUNDDOWN($B25,10)>=ROUNDDOWN(ClassList[BEGINTIJD],10))*($B25<=ClassList[EINDTIJD]),ClassList[UNIEK]),ClassList[UNIEK],0),2),0)","v":0},{"$f":"IFERROR(INDEX(ClassList[],MATCH(SUMPRODUCT((ClassList[DAG]=ClassSchedule[[#Headers],[VRIJDAG]])*(ROUNDDOWN($B25,10)>=ROUNDDOWN(ClassList[BEGINTIJD],10))*($B25<=ClassList[EINDTIJD]),ClassList[UNIEK]),ClassList[UNIEK],0),2),0)","v":0},{"$f":"IFERROR(INDEX(ClassList[],MATCH(SUMPRODUCT((ClassList[DAG]=ClassSchedule[[#Headers],[ZATERDAG]])*(ROUNDDOWN($B25,10)>=ROUNDDOWN(ClassList[BEGINTIJD],10))*($B25<=ClassList[EINDTIJD]),ClassList[UNIEK]),ClassList[UNIEK],0),2),0)","v":0}]
[null,"13:30:00",{"$f":"IFERROR(INDEX(ClassList[],MATCH(SUMPRODUCT((ClassList[DAG]=ClassSchedule[[#Headers],[ZONDAG]])*(ROUNDDOWN($B26,10)>=ROUNDDOWN(ClassList[BEGINTIJD],10))*($B26<=ClassList[EINDTIJD]),ClassList[UNIEK]),ClassList[UNIEK],0),2),0)","v":0},{"$f":"IFERROR(INDEX(ClassList[],MATCH(SUMPRODUCT((ClassList[DAG]=ClassSchedule[[#Headers],[MAANDAG]])*(ROUNDDOWN($B26,10)>=ROUNDDOWN(ClassList[BEGINTIJD],10))*($B26<=ClassList[EINDTIJD]),ClassList[UNIEK]),ClassList[UNIEK],0),2),0)","v":"SC-121"},{"$f":"IFERROR(INDEX(ClassList[],MATCH(SUMPRODUCT((ClassList[DAG]=ClassSchedule[[#Headers],[DINSDAG]])*(ROUNDDOWN($B26,10)>=ROUNDDOWN(ClassList[BEGINTIJD],10))*($B26<=ClassList[EINDTIJD]),ClassList[UNIEK]),ClassList[UNIEK],0),2),0)","v":0},{"$f":"IFERROR(INDEX(ClassList[],MATCH(SUMPRODUCT((ClassList[DAG]=ClassSchedule[[#Headers],[WOENSDAG]])*(ROUNDDOWN($B26,10)>=ROUNDDOWN(ClassList[BEGINTIJD],10))*($B26<=ClassList[EINDTIJD]),ClassList[UNIEK]),ClassList[UNIEK],0),2),0)","v":"SC-121"},{"$f":"IFERROR(INDEX(ClassList[],MATCH(SUMPRODUCT((ClassList[DAG]=ClassSchedule[[#Headers],[DONDERDAG]])*(ROUNDDOWN($B26,10)>=ROUNDDOWN(ClassList[BEGINTIJD],10))*($B26<=ClassList[EINDTIJD]),ClassList[UNIEK]),ClassList[UNIEK],0),2),0)","v":0},{"$f":"IFERROR(INDEX(ClassList[],MATCH(SUMPRODUCT((ClassList[DAG]=ClassSchedule[[#Headers],[VRIJDAG]])*(ROUNDDOWN($B26,10)>=ROUNDDOWN(ClassList[BEGINTIJD],10))*($B26<=ClassList[EINDTIJD]),ClassList[UNIEK]),ClassList[UNIEK],0),2),0)","v":0},{"$f":"IFERROR(INDEX(ClassList[],MATCH(SUMPRODUCT((ClassList[DAG]=ClassSchedule[[#Headers],[ZATERDAG]])*(ROUNDDOWN($B26,10)>=ROUNDDOWN(ClassList[BEGINTIJD],10))*($B26<=ClassList[EINDTIJD]),ClassList[UNIEK]),ClassList[UNIEK],0),2),0)","v":0}]
[null,"13:45:00",{"$f":"IFERROR(INDEX(ClassList[],MATCH(SUMPRODUCT((ClassList[DAG]=ClassSchedule[[#Headers],[ZONDAG]])*(ROUNDDOWN($B27,10)>=ROUNDDOWN(ClassList[BEGINTIJD],10))*($B27<=ClassList[EINDTIJD]),ClassList[UNIEK]),ClassList[UNIEK],0),2),0)","v":0},{"$f":"IFERROR(INDEX(ClassList[],MATCH(SUMPRODUCT((ClassList[DAG]=ClassSchedule[[#Headers],[MAANDAG]])*(ROUNDDOWN($B27,10)>=ROUNDDOWN(ClassList[BEGINTIJD],10))*($B27<=ClassList[EINDTIJD]),ClassList[UNIEK]),ClassList[UNIEK],0),2),0)","v":"SC-121"},{"$f":"IFERROR(INDEX(ClassList[],MATCH(SUMPRODUCT((ClassList[DAG]=ClassSchedule[[#Headers],[DINSDAG]])*(ROUNDDOWN($B27,10)>=ROUNDDOWN(ClassList[BEGINTIJD],10))*($B27<=ClassList[EINDTIJD]),ClassList[UNIEK]),ClassList[UNIEK],0),2),0)","v":0},{"$f":"IFERROR(INDEX(ClassList[],MATCH(SUMPRODUCT((ClassList[DAG]=ClassSchedule[[#Headers],[WOENSDAG]])*(ROUNDDOWN($B27,10)>=ROUNDDOWN(ClassList[BEGINTIJD],10))*($B27<=ClassList[EINDTIJD]),ClassList[UNIEK]),ClassList[UNIEK],0),2),0)","v":"SC-121"},{"$f":"IFERROR(INDEX(ClassList[],MATCH(SUMPRODUCT((ClassList[DAG]=ClassSchedule[[#Headers],[DONDERDAG]])*(ROUNDDOWN($B27,10)>=ROUNDDOWN(ClassList[BEGINTIJD],10))*($B27<=ClassList[EINDTIJD]),ClassList[UNIEK]),ClassList[UNIEK],0),2),0)","v":0},{"$f":"IFERROR(INDEX(ClassList[],MATCH(SUMPRODUCT((ClassList[DAG]=ClassSchedule[[#Headers],[VRIJDAG]])*(ROUNDDOWN($B27,10)>=ROUNDDOWN(ClassList[BEGINTIJD],10))*($B27<=ClassList[EINDTIJD]),ClassList[UNIEK]),ClassList[UNIEK],0),2),0)","v":0},{"$f":"IFERROR(INDEX(ClassList[],MATCH(SUMPRODUCT((ClassList[DAG]=ClassSchedule[[#Headers],[ZATERDAG]])*(ROUNDDOWN($B27,10)>=ROUNDDOWN(ClassList[BEGINTIJD],10))*($B27<=ClassList[EINDTIJD]),ClassList[UNIEK]),ClassList[UNIEK],0),2),0)","v":0}]
[null,"14:00:00",{"$f":"IFERROR(INDEX(ClassList[],MATCH(SUMPRODUCT((ClassList[DAG]=ClassSchedule[[#Headers],[ZONDAG]])*(ROUNDDOWN($B28,10)>=ROUNDDOWN(ClassList[BEGINTIJD],10))*($B28<=ClassList[EINDTIJD]),ClassList[UNIEK]),ClassList[UNIEK],0),2),0)","v":0},{"$f":"IFERROR(INDEX(ClassList[],MATCH(SUMPRODUCT((ClassList[DAG]=ClassSchedule[[#Headers],[MAANDAG]])*(ROUNDDOWN($B28,10)>=ROUNDDOWN(ClassList[BEGINTIJD],10))*($B28<=ClassList[EINDTIJD]),ClassList[UNIEK]),ClassList[UNIEK],0),2),0)","v":"SC-121"},{"$f":"IFERROR(INDEX(ClassList[],MATCH(SUMPRODUCT((ClassList[DAG]=ClassSchedule[[#Headers],[DINSDAG]])*(ROUNDDOWN($B28,10)>=ROUNDDOWN(ClassList[BEGINTIJD],10))*($B28<=ClassList[EINDTIJD]),ClassList[UNIEK]),ClassList[UNIEK],0),2),0)","v":0},{"$f":"IFERROR(INDEX(ClassList[],MATCH(SUMPRODUCT((ClassList[DAG]=ClassSchedule[[#Headers],[WOENSDAG]])*(ROUNDDOWN($B28,10)>=ROUNDDOWN(ClassList[BEGINTIJD],10))*($B28<=ClassList[EINDTIJD]),ClassList[UNIEK]),ClassList[UNIEK],0),2),0)","v":"SC-121"},{"$f":"IFERROR(INDEX(ClassList[],MATCH(SUMPRODUCT((ClassList[DAG]=ClassSchedule[[#Headers],[DONDERDAG]])*(ROUNDDOWN($B28,10)>=ROUNDDOWN(ClassList[BEGINTIJD],10))*($B28<=ClassList[EINDTIJD]),ClassList[UNIEK]),ClassList[UNIEK],0),2),0)","v":0},{"$f":"IFERROR(INDEX(ClassList[],MATCH(SUMPRODUCT((ClassList[DAG]=ClassSchedule[[#Headers],[VRIJDAG]])*(ROUNDDOWN($B28,10)>=ROUNDDOWN(ClassList[BEGINTIJD],10))*($B28<=ClassList[EINDTIJD]),ClassList[UNIEK]),ClassList[UNIEK],0),2),0)","v":0},{"$f":"IFERROR(INDEX(ClassList[],MATCH(SUMPRODUCT((ClassList[DAG]=ClassSchedule[[#Headers],[ZATERDAG]])*(ROUNDDOWN($B28,10)>=ROUNDDOWN(ClassList[BEGINTIJD],10))*($B28<=ClassList[EINDTIJD]),ClassList[UNIEK]),ClassList[UNIEK],0),2),0)","v":0}]
[null,"14:15:00",{"$f":"IFERROR(INDEX(ClassList[],MATCH(SUMPRODUCT((ClassList[DAG]=ClassSchedule[[#Headers],[ZONDAG]])*(ROUNDDOWN($B29,10)>=ROUNDDOWN(ClassList[BEGINTIJD],10))*($B29<=ClassList[EINDTIJD]),ClassList[UNIEK]),ClassList[UNIEK],0),2),0)","v":0},{"$f":"IFERROR(INDEX(ClassList[],MATCH(SUMPRODUCT((ClassList[DAG]=ClassSchedule[[#Headers],[MAANDAG]])*(ROUNDDOWN($B29,10)>=ROUNDDOWN(ClassList[BEGINTIJD],10))*($B29<=ClassList[EINDTIJD]),ClassList[UNIEK]),ClassList[UNIEK],0),2),0)","v":0},{"$f":"IFERROR(INDEX(ClassList[],MATCH(SUMPRODUCT((ClassList[DAG]=ClassSchedule[[#Headers],[DINSDAG]])*(ROUNDDOWN($B29,10)>=ROUNDDOWN(ClassList[BEGINTIJD],10))*($B29<=ClassList[EINDTIJD]),ClassList[UNIEK]),ClassList[UNIEK],0),2),0)","v":0},{"$f":"IFERROR(INDEX(ClassList[],MATCH(SUMPRODUCT((ClassList[DAG]=ClassSchedule[[#Headers],[WOENSDAG]])*(ROUNDDOWN($B29,10)>=ROUNDDOWN(ClassList[BEGINTIJD],10))*($B29<=ClassList[EINDTIJD]),ClassList[UNIEK]),ClassList[UNIEK],0),2),0)","v":0},{"$f":"IFERROR(INDEX(ClassList[],MATCH(SUMPRODUCT((ClassList[DAG]=ClassSchedule[[#Headers],[DONDERDAG]])*(ROUNDDOWN($B29,10)>=ROUNDDOWN(ClassList[BEGINTIJD],10))*($B29<=ClassList[EINDTIJD]),ClassList[UNIEK]),ClassList[UNIEK],0),2),0)","v":0},{"$f":"IFERROR(INDEX(ClassList[],MATCH(SUMPRODUCT((ClassList[DAG]=ClassSchedule[[#Headers],[VRIJDAG]])*(ROUNDDOWN($B29,10)>=ROUNDDOWN(ClassList[BEGINTIJD],10))*($B29<=ClassList[EINDTIJD]),ClassList[UNIEK]),ClassList[UNIEK],0),2),0)","v":0},{"$f":"IFERROR(INDEX(ClassList[],MATCH(SUMPRODUCT((ClassList[DAG]=ClassSchedule[[#Headers],[ZATERDAG]])*(ROUNDDOWN($B29,10)>=ROUNDDOWN(ClassList[BEGINTIJD],10))*($B29<=ClassList[EINDTIJD]),ClassList[UNIEK]),ClassList[UNIEK],0),2),0)","v":0}]
[null,"14:30:00",{"$f":"IFERROR(INDEX(ClassList[],MATCH(SUMPRODUCT((ClassList[DAG]=ClassSchedule[[#Headers],[ZONDAG]])*(ROUNDDOWN($B30,10)>=ROUNDDOWN(ClassList[BEGINTIJD],10))*($B30<=ClassList[EINDTIJD]),ClassList[UNIEK]),ClassList[UNIEK],0),2),0)","v":0},{"$f":"IFERROR(INDEX(ClassList[],MATCH(SUMPRODUCT((ClassList[DAG]=ClassSchedule[[#Headers],[MAANDAG]])*(ROUNDDOWN($B30,10)>=ROUNDDOWN(ClassList[BEGINTIJD],10))*($B30<=ClassList[EINDTIJD]),ClassList[UNIEK]),ClassList[UNIEK],0),2),0)","v":0},{"$f":"IFERROR(INDEX(ClassList[],MATCH(SUMPRODUCT((ClassList[DAG]=ClassSchedule[[#Headers],[DINSDAG]])*(ROUNDDOWN($B30,10)>=ROUNDDOWN(ClassList[BEGINTIJD],10))*($B30<=ClassList[EINDTIJD]),ClassList[UNIEK]),ClassList[UNIEK],0),2),0)","v":0},{"$f":"IFERROR(INDEX(ClassList[],MATCH(SUMPRODUCT((ClassList[DAG]=ClassSchedule[[#Headers],[WOENSDAG]])*(ROUNDDOWN($B30,10)>=ROUNDDOWN(ClassList[BEGINTIJD],10))*($B30<=ClassList[EINDTIJD]),ClassList[UNIEK]),ClassList[UNIEK],0),2),0)","v":0},{"$f":"IFERROR(INDEX(ClassList[],MATCH(SUMPRODUCT((ClassList[DAG]=ClassSchedule[[#Headers],[DONDERDAG]])*(ROUNDDOWN($B30,10)>=ROUNDDOWN(ClassList[BEGINTIJD],10))*($B30<=ClassList[EINDTIJD]),ClassList[UNIEK]),ClassList[UNIEK],0),2),0)","v":0},{"$f":"IFERROR(INDEX(ClassList[],MATCH(SUMPRODUCT((ClassList[DAG]=ClassSchedule[[#Headers],[VRIJDAG]])*(ROUNDDOWN($B30,10)>=ROUNDDOWN(ClassList[BEGINTIJD],10))*($B30<=ClassList[EINDTIJD]),ClassList[UNIEK]),ClassList[UNIEK],0),2),0)","v":0},{"$f":"IFERROR(INDEX(ClassList[],MATCH(SUMPRODUCT((ClassList[DAG]=ClassSchedule[[#Headers],[ZATERDAG]])*(ROUNDDOWN($B30,10)>=ROUNDDOWN(ClassList[BEGINTIJD],10))*($B30<=ClassList[EINDTIJD]),ClassList[UNIEK]),ClassList[UNIEK],0),2),0)","v":0}]
[null,"14:45:00",{"$f":"IFERROR(INDEX(ClassList[],MATCH(SUMPRODUCT((ClassList[DAG]=ClassSchedule[[#Headers],[ZONDAG]])*(ROUNDDOWN($B31,10)>=ROUNDDOWN(ClassList[BEGINTIJD],10))*($B31<=ClassList[EINDTIJD]),ClassList[UNIEK]),ClassList[UNIEK],0),2),0)","v":0},{"$f":"IFERROR(INDEX(ClassList[],MATCH(SUMPRODUCT((ClassList[DAG]=ClassSchedule[[#Headers],[MAANDAG]])*(ROUNDDOWN($B31,10)>=ROUNDDOWN(ClassList[BEGINTIJD],10))*($B31<=ClassList[EINDTIJD]),ClassList[UNIEK]),ClassList[UNIEK],0),2),0)","v":0},{"$f":"IFERROR(INDEX(ClassList[],MATCH(SUMPRODUCT((ClassList[DAG]=ClassSchedule[[#Headers],[DINSDAG]])*(ROUNDDOWN($B31,10)>=ROUNDDOWN(ClassList[BEGINTIJD],10))*($B31<=ClassList[EINDTIJD]),ClassList[UNIEK]),ClassList[UNIEK],0),2),0)","v":0},{"$f":"IFERROR(INDEX(ClassList[],MATCH(SUMPRODUCT((ClassList[DAG]=ClassSchedule[[#Headers],[WOENSDAG]])*(ROUNDDOWN($B31,10)>=ROUNDDOWN(ClassList[BEGINTIJD],10))*($B31<=ClassList[EINDTIJD]),ClassList[UNIEK]),ClassList[UNIEK],0),2),0)","v":0},{"$f":"IFERROR(INDEX(ClassList[],MATCH(SUMPRODUCT((ClassList[DAG]=ClassSchedule[[#Headers],[DONDERDAG]])*(ROUNDDOWN($B31,10)>=ROUNDDOWN(ClassList[BEGINTIJD],10))*($B31<=ClassList[EINDTIJD]),ClassList[UNIEK]),ClassList[UNIEK],0),2),0)","v":0},{"$f":"IFERROR(INDEX(ClassList[],MATCH(SUMPRODUCT((ClassList[DAG]=ClassSchedule[[#Headers],[VRIJDAG]])*(ROUNDDOWN($B31,10)>=ROUNDDOWN(ClassList[BEGINTIJD],10))*($B31<=ClassList[EINDTIJD]),ClassList[UNIEK]),ClassList[UNIEK],0),2),0)","v":0},{"$f":"IFERROR(INDEX(ClassList[],MATCH(SUMPRODUCT((ClassList[DAG]=ClassSchedule[[#Headers],[ZATERDAG]])*(ROUNDDOWN($B31,10)>=ROUNDDOWN(ClassList[BEGINTIJD],10))*($B31<=ClassList[EINDTIJD]),ClassList[UNIEK]),ClassList[UNIEK],0),2),0)","v":0}]
[null,"15:00:00",{"$f":"IFERROR(INDEX(ClassList[],MATCH(SUMPRODUCT((ClassList[DAG]=ClassSchedule[[#Headers],[ZONDAG]])*(ROUNDDOWN($B32,10)>=ROUNDDOWN(ClassList[BEGINTIJD],10))*($B32<=ClassList[EINDTIJD]),ClassList[UNIEK]),ClassList[UNIEK],0),2),0)","v":0},{"$f":"IFERROR(INDEX(ClassList[],MATCH(SUMPRODUCT((ClassList[DAG]=ClassSchedule[[#Headers],[MAANDAG]])*(ROUNDDOWN($B32,10)>=ROUNDDOWN(ClassList[BEGINTIJD],10))*($B32<=ClassList[EINDTIJD]),ClassList[UNIEK]),ClassList[UNIEK],0),2),0)","v":0},{"$f":"IFERROR(INDEX(ClassList[],MATCH(SUMPRODUCT((ClassList[DAG]=ClassSchedule[[#Headers],[DINSDAG]])*(ROUNDDOWN($B32,10)>=ROUNDDOWN(ClassList[BEGINTIJD],10))*($B32<=ClassList[EINDTIJD]),ClassList[UNIEK]),ClassList[UNIEK],0),2),0)","v":0},{"$f":"IFERROR(INDEX(ClassList[],MATCH(SUMPRODUCT((ClassList[DAG]=ClassSchedule[[#Headers],[WOENSDAG]])*(ROUNDDOWN($B32,10)>=ROUNDDOWN(ClassList[BEGINTIJD],10))*($B32<=ClassList[EINDTIJD]),ClassList[UNIEK]),ClassList[UNIEK],0),2),0)","v":0},{"$f":"IFERROR(INDEX(ClassList[],MATCH(SUMPRODUCT((ClassList[DAG]=ClassSchedule[[#Headers],[DONDERDAG]])*(ROUNDDOWN($B32,10)>=ROUNDDOWN(ClassList[BEGINTIJD],10))*($B32<=ClassList[EINDTIJD]),ClassList[UNIEK]),ClassList[UNIEK],0),2),0)","v":0},{"$f":"IFERROR(INDEX(ClassList[],MATCH(SUMPRODUCT((ClassList[DAG]=ClassSchedule[[#Headers],[VRIJDAG]])*(ROUNDDOWN($B32,10)>=ROUNDDOWN(ClassList[BEGINTIJD],10))*($B32<=ClassList[EINDTIJD]),ClassList[UNIEK]),ClassList[UNIEK],0),2),0)","v":0},{"$f":"IFERROR(INDEX(ClassList[],MATCH(SUMPRODUCT((ClassList[DAG]=ClassSchedule[[#Headers],[ZATERDAG]])*(ROUNDDOWN($B32,10)>=ROUNDDOWN(ClassList[BEGINTIJD],10))*($B32<=ClassList[EINDTIJD]),ClassList[UNIEK]),ClassList[UNIEK],0),2),0)","v":0}]
[null,"15:15:00",{"$f":"IFERROR(INDEX(ClassList[],MATCH(SUMPRODUCT((ClassList[DAG]=ClassSchedule[[#Headers],[ZONDAG]])*(ROUNDDOWN($B33,10)>=ROUNDDOWN(ClassList[BEGINTIJD],10))*($B33<=ClassList[EINDTIJD]),ClassList[UNIEK]),ClassList[UNIEK],0),2),0)","v":0},{"$f":"IFERROR(INDEX(ClassList[],MATCH(SUMPRODUCT((ClassList[DAG]=ClassSchedule[[#Headers],[MAANDAG]])*(ROUNDDOWN($B33,10)>=ROUNDDOWN(ClassList[BEGINTIJD],10))*($B33<=ClassList[EINDTIJD]),ClassList[UNIEK]),ClassList[UNIEK],0),2),0)","v":0},{"$f":"IFERROR(INDEX(ClassList[],MATCH(SUMPRODUCT((ClassList[DAG]=ClassSchedule[[#Headers],[DINSDAG]])*(ROUNDDOWN($B33,10)>=ROUNDDOWN(ClassList[BEGINTIJD],10))*($B33<=ClassList[EINDTIJD]),ClassList[UNIEK]),ClassList[UNIEK],0),2),0)","v":0},{"$f":"IFERROR(INDEX(ClassList[],MATCH(SUMPRODUCT((ClassList[DAG]=ClassSchedule[[#Headers],[WOENSDAG]])*(ROUNDDOWN($B33,10)>=ROUNDDOWN(ClassList[BEGINTIJD],10))*($B33<=ClassList[EINDTIJD]),ClassList[UNIEK]),ClassList[UNIEK],0),2),0)","v":0},{"$f":"IFERROR(INDEX(ClassList[],MATCH(SUMPRODUCT((ClassList[DAG]=ClassSchedule[[#Headers],[DONDERDAG]])*(ROUNDDOWN($B33,10)>=ROUNDDOWN(ClassList[BEGINTIJD],10))*($B33<=ClassList[EINDTIJD]),ClassList[UNIEK]),ClassList[UNIEK],0),2),0)","v":0},{"$f":"IFERROR(INDEX(ClassList[],MATCH(SUMPRODUCT((ClassList[DAG]=ClassSchedule[[#Headers],[VRIJDAG]])*(ROUNDDOWN($B33,10)>=ROUNDDOWN(ClassList[BEGINTIJD],10))*($B33<=ClassList[EINDTIJD]),ClassList[UNIEK]),ClassList[UNIEK],0),2),0)","v":0},{"$f":"IFERROR(INDEX(ClassList[],MATCH(SUMPRODUCT((ClassList[DAG]=ClassSchedule[[#Headers],[ZATERDAG]])*(ROUNDDOWN($B33,10)>=ROUNDDOWN(ClassList[BEGINTIJD],10))*($B33<=ClassList[EINDTIJD]),ClassList[UNIEK]),ClassList[UNIEK],0),2),0)","v":0}]
[null,"15:30:00",{"$f":"IFERROR(INDEX(ClassList[],MATCH(SUMPRODUCT((ClassList[DAG]=ClassSchedule[[#Headers],[ZONDAG]])*(ROUNDDOWN($B34,10)>=ROUNDDOWN(ClassList[BEGINTIJD],10))*($B34<=ClassList[EINDTIJD]),ClassList[UNIEK]),ClassList[UNIEK],0),2),0)","v":0},{"$f":"IFERROR(INDEX(ClassList[],MATCH(SUMPRODUCT((ClassList[DAG]=ClassSchedule[[#Headers],[MAANDAG]])*(ROUNDDOWN($B34,10)>=ROUNDDOWN(ClassList[BEGINTIJD],10))*($B34<=ClassList[EINDTIJD]),ClassList[UNIEK]),ClassList[UNIEK],0),2),0)","v":0},{"$f":"IFERROR(INDEX(ClassList[],MATCH(SUMPRODUCT((ClassList[DAG]=ClassSchedule[[#Headers],[DINSDAG]])*(ROUNDDOWN($B34,10)>=ROUNDDOWN(ClassList[BEGINTIJD],10))*($B34<=ClassList[EINDTIJD]),ClassList[UNIEK]),ClassList[UNIEK],0),2),0)","v":0},{"$f":"IFERROR(INDEX(ClassList[],MATCH(SUMPRODUCT((ClassList[DAG]=ClassSchedule[[#Headers],[WOENSDAG]])*(ROUNDDOWN($B34,10)>=ROUNDDOWN(ClassList[BEGINTIJD],10))*($B34<=ClassList[EINDTIJD]),ClassList[UNIEK]),ClassList[UNIEK],0),2),0)","v":0},{"$f":"IFERROR(INDEX(ClassList[],MATCH(SUMPRODUCT((ClassList[DAG]=ClassSchedule[[#Headers],[DONDERDAG]])*(ROUNDDOWN($B34,10)>=ROUNDDOWN(ClassList[BEGINTIJD],10))*($B34<=ClassList[EINDTIJD]),ClassList[UNIEK]),ClassList[UNIEK],0),2),0)","v":0},{"$f":"IFERROR(INDEX(ClassList[],MATCH(SUMPRODUCT((ClassList[DAG]=ClassSchedule[[#Headers],[VRIJDAG]])*(ROUNDDOWN($B34,10)>=ROUNDDOWN(ClassList[BEGINTIJD],10))*($B34<=ClassList[EINDTIJD]),ClassList[UNIEK]),ClassList[UNIEK],0),2),0)","v":0},{"$f":"IFERROR(INDEX(ClassList[],MATCH(SUMPRODUCT((ClassList[DAG]=ClassSchedule[[#Headers],[ZATERDAG]])*(ROUNDDOWN($B34,10)>=ROUNDDOWN(ClassList[BEGINTIJD],10))*($B34<=ClassList[EINDTIJD]),ClassList[UNIEK]),ClassList[UNIEK],0),2),0)","v":0}]
[null,"15:45:00",{"$f":"IFERROR(INDEX(ClassList[],MATCH(SUMPRODUCT((ClassList[DAG]=ClassSchedule[[#Headers],[ZONDAG]])*(ROUNDDOWN($B35,10)>=ROUNDDOWN(ClassList[BEGINTIJD],10))*($B35<=ClassList[EINDTIJD]),ClassList[UNIEK]),ClassList[UNIEK],0),2),0)","v":0},{"$f":"IFERROR(INDEX(ClassList[],MATCH(SUMPRODUCT((ClassList[DAG]=ClassSchedule[[#Headers],[MAANDAG]])*(ROUNDDOWN($B35,10)>=ROUNDDOWN(ClassList[BEGINTIJD],10))*($B35<=ClassList[EINDTIJD]),ClassList[UNIEK]),ClassList[UNIEK],0),2),0)","v":0},{"$f":"IFERROR(INDEX(ClassList[],MATCH(SUMPRODUCT((ClassList[DAG]=ClassSchedule[[#Headers],[DINSDAG]])*(ROUNDDOWN($B35,10)>=ROUNDDOWN(ClassList[BEGINTIJD],10))*($B35<=ClassList[EINDTIJD]),ClassList[UNIEK]),ClassList[UNIEK],0),2),0)","v":0},{"$f":"IFERROR(INDEX(ClassList[],MATCH(SUMPRODUCT((ClassList[DAG]=ClassSchedule[[#Headers],[WOENSDAG]])*(ROUNDDOWN($B35,10)>=ROUNDDOWN(ClassList[BEGINTIJD],10))*($B35<=ClassList[EINDTIJD]),ClassList[UNIEK]),ClassList[UNIEK],0),2),0)","v":0},{"$f":"IFERROR(INDEX(ClassList[],MATCH(SUMPRODUCT((ClassList[DAG]=ClassSchedule[[#Headers],[DONDERDAG]])*(ROUNDDOWN($B35,10)>=ROUNDDOWN(ClassList[BEGINTIJD],10))*($B35<=ClassList[EINDTIJD]),ClassList[UNIEK]),ClassList[UNIEK],0),2),0)","v":0},{"$f":"IFERROR(INDEX(ClassList[],MATCH(SUMPRODUCT((ClassList[DAG]=ClassSchedule[[#Headers],[VRIJDAG]])*(ROUNDDOWN($B35,10)>=ROUNDDOWN(ClassList[BEGINTIJD],10))*($B35<=ClassList[EINDTIJD]),ClassList[UNIEK]),ClassList[UNIEK],0),2),0)","v":0},{"$f":"IFERROR(INDEX(ClassList[],MATCH(SUMPRODUCT((ClassList[DAG]=ClassSchedule[[#Headers],[ZATERDAG]])*(ROUNDDOWN($B35,10)>=ROUNDDOWN(ClassList[BEGINTIJD],10))*($B35<=ClassList[EINDTIJD]),ClassList[UNIEK]),ClassList[UNIEK],0),2),0)","v":0}]
[null,"16:00:00",{"$f":"IFERROR(INDEX(ClassList[],MATCH(SUMPRODUCT((ClassList[DAG]=ClassSchedule[[#Headers],[ZONDAG]])*(ROUNDDOWN($B36,10)>=ROUNDDOWN(ClassList[BEGINTIJD],10))*($B36<=ClassList[EINDTIJD]),ClassList[UNIEK]),ClassList[UNIEK],0),2),0)","v":0},{"$f":"IFERROR(INDEX(ClassList[],MATCH(SUMPRODUCT((ClassList[DAG]=ClassSchedule[[#Headers],[MAANDAG]])*(ROUNDDOWN($B36,10)>=ROUNDDOWN(ClassList[BEGINTIJD],10))*($B36<=ClassList[EINDTIJD]),ClassList[UNIEK]),ClassList[UNIEK],0),2),0)","v":"SP-111"},{"$f":"IFERROR(INDEX(ClassList[],MATCH(SUMPRODUCT((ClassList[DAG]=ClassSchedule[[#Headers],[DINSDAG]])*(ROUNDDOWN($B36,10)>=ROUNDDOWN(ClassList[BEGINTIJD],10))*($B36<=ClassList[EINDTIJD]),ClassList[UNIEK]),ClassList[UNIEK],0),2),0)","v":0},{"$f":"IFERROR(INDEX(ClassList[],MATCH(SUMPRODUCT((ClassList[DAG]=ClassSchedule[[#Headers],[WOENSDAG]])*(ROUNDDOWN($B36,10)>=ROUNDDOWN(ClassList[BEGINTIJD],10))*($B36<=ClassList[EINDTIJD]),ClassList[UNIEK]),ClassList[UNIEK],0),2),0)","v":0},{"$f":"IFERROR(INDEX(ClassList[],MATCH(SUMPRODUCT((ClassList[DAG]=ClassSchedule[[#Headers],[DONDERDAG]])*(ROUNDDOWN($B36,10)>=ROUNDDOWN(ClassList[BEGINTIJD],10))*($B36<=ClassList[EINDTIJD]),ClassList[UNIEK]),ClassList[UNIEK],0),2),0)","v":0},{"$f":"IFERROR(INDEX(ClassList[],MATCH(SUMPRODUCT((ClassList[DAG]=ClassSchedule[[#Headers],[VRIJDAG]])*(ROUNDDOWN($B36,10)>=ROUNDDOWN(ClassList[BEGINTIJD],10))*($B36<=ClassList[EINDTIJD]),ClassList[UNIEK]),ClassList[UNIEK],0),2),0)","v":0},{"$f":"IFERROR(INDEX(ClassList[],MATCH(SUMPRODUCT((ClassList[DAG]=ClassSchedule[[#Headers],[ZATERDAG]])*(ROUNDDOWN($B36,10)>=ROUNDDOWN(ClassList[BEGINTIJD],10))*($B36<=ClassList[EINDTIJD]),ClassList[UNIEK]),ClassList[UNIEK],0),2),0)","v":0}]
[null,"16:15:00",{"$f":"IFERROR(INDEX(ClassList[],MATCH(SUMPRODUCT((ClassList[DAG]=ClassSchedule[[#Headers],[ZONDAG]])*(ROUNDDOWN($B37,10)>=ROUNDDOWN(ClassList[BEGINTIJD],10))*($B37<=ClassList[EINDTIJD]),ClassList[UNIEK]),ClassList[UNIEK],0),2),0)","v":0},{"$f":"IFERROR(INDEX(ClassList[],MATCH(SUMPRODUCT((ClassList[DAG]=ClassSchedule[[#Headers],[MAANDAG]])*(ROUNDDOWN($B37,10)>=ROUNDDOWN(ClassList[BEGINTIJD],10))*($B37<=ClassList[EINDTIJD]),ClassList[UNIEK]),ClassList[UNIEK],0),2),0)","v":"SP-111"},{"$f":"IFERROR(INDEX(ClassList[],MATCH(SUMPRODUCT((ClassList[DAG]=ClassSchedule[[#Headers],[DINSDAG]])*(ROUNDDOWN($B37,10)>=ROUNDDOWN(ClassList[BEGINTIJD],10))*($B37<=ClassList[EINDTIJD]),ClassList[UNIEK]),ClassList[UNIEK],0),2),0)","v":0},{"$f":"IFERROR(INDEX(ClassList[],MATCH(SUMPRODUCT((ClassList[DAG]=ClassSchedule[[#Headers],[WOENSDAG]])*(ROUNDDOWN($B37,10)>=ROUNDDOWN(ClassList[BEGINTIJD],10))*($B37<=ClassList[EINDTIJD]),ClassList[UNIEK]),ClassList[UNIEK],0),2),0)","v":0},{"$f":"IFERROR(INDEX(ClassList[],MATCH(SUMPRODUCT((ClassList[DAG]=ClassSchedule[[#Headers],[DONDERDAG]])*(ROUNDDOWN($B37,10)>=ROUNDDOWN(ClassList[BEGINTIJD],10))*($B37<=ClassList[EINDTIJD]),ClassList[UNIEK]),ClassList[UNIEK],0),2),0)","v":0},{"$f":"IFERROR(INDEX(ClassList[],MATCH(SUMPRODUCT((ClassList[DAG]=ClassSchedule[[#Headers],[VRIJDAG]])*(ROUNDDOWN($B37,10)>=ROUNDDOWN(ClassList[BEGINTIJD],10))*($B37<=ClassList[EINDTIJD]),ClassList[UNIEK]),ClassList[UNIEK],0),2),0)","v":0},{"$f":"IFERROR(INDEX(ClassList[],MATCH(SUMPRODUCT((ClassList[DAG]=ClassSchedule[[#Headers],[ZATERDAG]])*(ROUNDDOWN($B37,10)>=ROUNDDOWN(ClassList[BEGINTIJD],10))*($B37<=ClassList[EINDTIJD]),ClassList[UNIEK]),ClassList[UNIEK],0),2),0)","v":0}]
[null,"16:30:00",{"$f":"IFERROR(INDEX(ClassList[],MATCH(SUMPRODUCT((ClassList[DAG]=ClassSchedule[[#Headers],[ZONDAG]])*(ROUNDDOWN($B38,10)>=ROUNDDOWN(ClassList[BEGINTIJD],10))*($B38<=ClassList[EINDTIJD]),ClassList[UNIEK]),ClassList[UNIEK],0),2),0)","v":0},{"$f":"IFERROR(INDEX(ClassList[],MATCH(SUMPRODUCT((ClassList[DAG]=ClassSchedule[[#Headers],[MAANDAG]])*(ROUNDDOWN($B38,10)>=ROUNDDOWN(ClassList[BEGINTIJD],10))*($B38<=ClassList[EINDTIJD]),ClassList[UNIEK]),ClassList[UNIEK],0),2),0)","v":"SP-111"},{"$f":"IFERROR(INDEX(ClassList[],MATCH(SUMPRODUCT((ClassList[DAG]=ClassSchedule[[#Headers],[DINSDAG]])*(ROUNDDOWN($B38,10)>=ROUNDDOWN(ClassList[BEGINTIJD],10))*($B38<=ClassList[EINDTIJD]),ClassList[UNIEK]),ClassList[UNIEK],0),2),0)","v":0},{"$f":"IFERROR(INDEX(ClassList[],MATCH(SUMPRODUCT((ClassList[DAG]=ClassSchedule[[#Headers],[WOENSDAG]])*(ROUNDDOWN($B38,10)>=ROUNDDOWN(ClassList[BEGINTIJD],10))*($B38<=ClassList[EINDTIJD]),ClassList[UNIEK]),ClassList[UNIEK],0),2),0)","v":0},{"$f":"IFERROR(INDEX(ClassList[],MATCH(SUMPRODUCT((ClassList[DAG]=ClassSchedule[[#Headers],[DONDERDAG]])*(ROUNDDOWN($B38,10)>=ROUNDDOWN(ClassList[BEGINTIJD],10))*($B38<=ClassList[EINDTIJD]),ClassList[UNIEK]),ClassList[UNIEK],0),2),0)","v":0},{"$f":"IFERROR(INDEX(ClassList[],MATCH(SUMPRODUCT((ClassList[DAG]=ClassSchedule[[#Headers],[VRIJDAG]])*(ROUNDDOWN($B38,10)>=ROUNDDOWN(ClassList[BEGINTIJD],10))*($B38<=ClassList[EINDTIJD]),ClassList[UNIEK]),ClassList[UNIEK],0),2),0)","v":0},{"$f":"IFERROR(INDEX(ClassList[],MATCH(SUMPRODUCT((ClassList[DAG]=ClassSchedule[[#Headers],[ZATERDAG]])*(ROUNDDOWN($B38,10)>=ROUNDDOWN(ClassList[BEGINTIJD],10))*($B38<=ClassList[EINDTIJD]),ClassList[UNIEK]),ClassList[UNIEK],0),2),0)","v":0}]
[null,"16:45:00",{"$f":"IFERROR(INDEX(ClassList[],MATCH(SUMPRODUCT((ClassList[DAG]=ClassSchedule[[#Headers],[ZONDAG]])*(ROUNDDOWN($B39,10)>=ROUNDDOWN(ClassList[BEGINTIJD],10))*($B39<=ClassList[EINDTIJD]),ClassList[UNIEK]),ClassList[UNIEK],0),2),0)","v":0},{"$f":"IFERROR(INDEX(ClassList[],MATCH(SUMPRODUCT((ClassList[DAG]=ClassSchedule[[#Headers],[MAANDAG]])*(ROUNDDOWN($B39,10)>=ROUNDDOWN(ClassList[BEGINTIJD],10))*($B39<=ClassList[EINDTIJD]),ClassList[UNIEK]),ClassList[UNIEK],0),2),0)","v":"SP-111"},{"$f":"IFERROR(INDEX(ClassList[],MATCH(SUMPRODUCT((ClassList[DAG]=ClassSchedule[[#Headers],[DINSDAG]])*(ROUNDDOWN($B39,10)>=ROUNDDOWN(ClassList[BEGINTIJD],10))*($B39<=ClassList[EINDTIJD]),ClassList[UNIEK]),ClassList[UNIEK],0),2),0)","v":0},{"$f":"IFERROR(INDEX(ClassList[],MATCH(SUMPRODUCT((ClassList[DAG]=ClassSchedule[[#Headers],[WOENSDAG]])*(ROUNDDOWN($B39,10)>=ROUNDDOWN(ClassList[BEGINTIJD],10))*($B39<=ClassList[EINDTIJD]),ClassList[UNIEK]),ClassList[UNIEK],0),2),0)","v":0},{"$f":"IFERROR(INDEX(ClassList[],MATCH(SUMPRODUCT((ClassList[DAG]=ClassSchedule[[#Headers],[DONDERDAG]])*(ROUNDDOWN($B39,10)>=ROUNDDOWN(ClassList[BEGINTIJD],10))*($B39<=ClassList[EINDTIJD]),ClassList[UNIEK]),ClassList[UNIEK],0),2),0)","v":0},{"$f":"IFERROR(INDEX(ClassList[],MATCH(SUMPRODUCT((ClassList[DAG]=ClassSchedule[[#Headers],[VRIJDAG]])*(ROUNDDOWN($B39,10)>=ROUNDDOWN(ClassList[BEGINTIJD],10))*($B39<=ClassList[EINDTIJD]),ClassList[UNIEK]),ClassList[UNIEK],0),2),0)","v":0},{"$f":"IFERROR(INDEX(ClassList[],MATCH(SUMPRODUCT((ClassList[DAG]=ClassSchedule[[#Headers],[ZATERDAG]])*(ROUNDDOWN($B39,10)>=ROUNDDOWN(ClassList[BEGINTIJD],10))*($B39<=ClassList[EINDTIJD]),ClassList[UNIEK]),ClassList[UNIEK],0),2),0)","v":0}]
[null,"17:00:00",{"$f":"IFERROR(INDEX(ClassList[],MATCH(SUMPRODUCT((ClassList[DAG]=ClassSchedule[[#Headers],[ZONDAG]])*(ROUNDDOWN($B40,10)>=ROUNDDOWN(ClassList[BEGINTIJD],10))*($B40<=ClassList[EINDTIJD]),ClassList[UNIEK]),ClassList[UNIEK],0),2),0)","v":0},{"$f":"IFERROR(INDEX(ClassList[],MATCH(SUMPRODUCT((ClassList[DAG]=ClassSchedule[[#Headers],[MAANDAG]])*(ROUNDDOWN($B40,10)>=ROUNDDOWN(ClassList[BEGINTIJD],10))*($B40<=ClassList[EINDTIJD]),ClassList[UNIEK]),ClassList[UNIEK],0),2),0)","v":"SP-111"},{"$f":"IFERROR(INDEX(ClassList[],MATCH(SUMPRODUCT((ClassList[DAG]=ClassSchedule[[#Headers],[DINSDAG]])*(ROUNDDOWN($B40,10)>=ROUNDDOWN(ClassList[BEGINTIJD],10))*($B40<=ClassList[EINDTIJD]),ClassList[UNIEK]),ClassList[UNIEK],0),2),0)","v":0},{"$f":"IFERROR(INDEX(ClassList[],MATCH(SUMPRODUCT((ClassList[DAG]=ClassSchedule[[#Headers],[WOENSDAG]])*(ROUNDDOWN($B40,10)>=ROUNDDOWN(ClassList[BEGINTIJD],10))*($B40<=ClassList[EINDTIJD]),ClassList[UNIEK]),ClassList[UNIEK],0),2),0)","v":0},{"$f":"IFERROR(INDEX(ClassList[],MATCH(SUMPRODUCT((ClassList[DAG]=ClassSchedule[[#Headers],[DONDERDAG]])*(ROUNDDOWN($B40,10)>=ROUNDDOWN(ClassList[BEGINTIJD],10))*($B40<=ClassList[EINDTIJD]),ClassList[UNIEK]),ClassList[UNIEK],0),2),0)","v":0},{"$f":"IFERROR(INDEX(ClassList[],MATCH(SUMPRODUCT((ClassList[DAG]=ClassSchedule[[#Headers],[VRIJDAG]])*(ROUNDDOWN($B40,10)>=ROUNDDOWN(ClassList[BEGINTIJD],10))*($B40<=ClassList[EINDTIJD]),ClassList[UNIEK]),ClassList[UNIEK],0),2),0)","v":0},{"$f":"IFERROR(INDEX(ClassList[],MATCH(SUMPRODUCT((ClassList[DAG]=ClassSchedule[[#Headers],[ZATERDAG]])*(ROUNDDOWN($B40,10)>=ROUNDDOWN(ClassList[BEGINTIJD],10))*($B40<=ClassList[EINDTIJD]),ClassList[UNIEK]),ClassList[UNIEK],0),2),0)","v":0}]
[null,"17:15:00",{"$f":"IFERROR(INDEX(ClassList[],MATCH(SUMPRODUCT((ClassList[DAG]=ClassSchedule[[#Headers],[ZONDAG]])*(ROUNDDOWN($B41,10)>=ROUNDDOWN(ClassList[BEGINTIJD],10))*($B41<=ClassList[EINDTIJD]),ClassList[UNIEK]),ClassList[UNIEK],0),2),0)","v":0},{"$f":"IFERROR(INDEX(ClassList[],MATCH(SUMPRODUCT((ClassList[DAG]=ClassSchedule[[#Headers],[MAANDAG]])*(ROUNDDOWN($B41,10)>=ROUNDDOWN(ClassList[BEGINTIJD],10))*($B41<=ClassList[EINDTIJD]),ClassList[UNIEK]),ClassList[UNIEK],0),2),0)","v":0},{"$f":"IFERROR(INDEX(ClassList[],MATCH(SUMPRODUCT((ClassList[DAG]=ClassSchedule[[#Headers],[DINSDAG]])*(ROUNDDOWN($B41,10)>=ROUNDDOWN(ClassList[BEGINTIJD],10))*($B41<=ClassList[EINDTIJD]),ClassList[UNIEK]),ClassList[UNIEK],0),2),0)","v":0},{"$f":"IFERROR(INDEX(ClassList[],MATCH(SUMPRODUCT((ClassList[DAG]=ClassSchedule[[#Headers],[WOENSDAG]])*(ROUNDDOWN($B41,10)>=ROUNDDOWN(ClassList[BEGINTIJD],10))*($B41<=ClassList[EINDTIJD]),ClassList[UNIEK]),ClassList[UNIEK],0),2),0)","v":0},{"$f":"IFERROR(INDEX(ClassList[],MATCH(SUMPRODUCT((ClassList[DAG]=ClassSchedule[[#Headers],[DONDERDAG]])*(ROUNDDOWN($B41,10)>=ROUNDDOWN(ClassList[BEGINTIJD],10))*($B41<=ClassList[EINDTIJD]),ClassList[UNIEK]),ClassList[UNIEK],0),2),0)","v":0},{"$f":"IFERROR(INDEX(ClassList[],MATCH(SUMPRODUCT((ClassList[DAG]=ClassSchedule[[#Headers],[VRIJDAG]])*(ROUNDDOWN($B41,10)>=ROUNDDOWN(ClassList[BEGINTIJD],10))*($B41<=ClassList[EINDTIJD]),ClassList[UNIEK]),ClassList[UNIEK],0),2),0)","v":0},{"$f":"IFERROR(INDEX(ClassList[],MATCH(SUMPRODUCT((ClassList[DAG]=ClassSchedule[[#Headers],[ZATERDAG]])*(ROUNDDOWN($B41,10)>=ROUNDDOWN(ClassList[BEGINTIJD],10))*($B41<=ClassList[EINDTIJD]),ClassList[UNIEK]),ClassList[UNIEK],0),2),0)","v":0}]
[null,"17:30:00",{"$f":"IFERROR(INDEX(ClassList[],MATCH(SUMPRODUCT((ClassList[DAG]=ClassSchedule[[#Headers],[ZONDAG]])*(ROUNDDOWN($B42,10)>=ROUNDDOWN(ClassList[BEGINTIJD],10))*($B42<=ClassList[EINDTIJD]),ClassList[UNIEK]),ClassList[UNIEK],0),2),0)","v":0},{"$f":"IFERROR(INDEX(ClassList[],MATCH(SUMPRODUCT((ClassList[DAG]=ClassSchedule[[#Headers],[MAANDAG]])*(ROUNDDOWN($B42,10)>=ROUNDDOWN(ClassList[BEGINTIJD],10))*($B42<=ClassList[EINDTIJD]),ClassList[UNIEK]),ClassList[UNIEK],0),2),0)","v":0},{"$f":"IFERROR(INDEX(ClassList[],MATCH(SUMPRODUCT((ClassList[DAG]=ClassSchedule[[#Headers],[DINSDAG]])*(ROUNDDOWN($B42,10)>=ROUNDDOWN(ClassList[BEGINTIJD],10))*($B42<=ClassList[EINDTIJD]),ClassList[UNIEK]),ClassList[UNIEK],0),2),0)","v":0},{"$f":"IFERROR(INDEX(ClassList[],MATCH(SUMPRODUCT((ClassList[DAG]=ClassSchedule[[#Headers],[WOENSDAG]])*(ROUNDDOWN($B42,10)>=ROUNDDOWN(ClassList[BEGINTIJD],10))*($B42<=ClassList[EINDTIJD]),ClassList[UNIEK]),ClassList[UNIEK],0),2),0)","v":0},{"$f":"IFERROR(INDEX(ClassList[],MATCH(SUMPRODUCT((ClassList[DAG]=ClassSchedule[[#Headers],[DONDERDAG]])*(ROUNDDOWN($B42,10)>=ROUNDDOWN(ClassList[BEGINTIJD],10))*($B42<=ClassList[EINDTIJD]),ClassList[UNIEK]),ClassList[UNIEK],0),2),0)","v":0},{"$f":"IFERROR(INDEX(ClassList[],MATCH(SUMPRODUCT((ClassList[DAG]=ClassSchedule[[#Headers],[VRIJDAG]])*(ROUNDDOWN($B42,10)>=ROUNDDOWN(ClassList[BEGINTIJD],10))*($B42<=ClassList[EINDTIJD]),ClassList[UNIEK]),ClassList[UNIEK],0),2),0)","v":0},{"$f":"IFERROR(INDEX(ClassList[],MATCH(SUMPRODUCT((ClassList[DAG]=ClassSchedule[[#Headers],[ZATERDAG]])*(ROUNDDOWN($B42,10)>=ROUNDDOWN(ClassList[BEGINTIJD],10))*($B42<=ClassList[EINDTIJD]),ClassList[UNIEK]),ClassList[UNIEK],0),2),0)","v":0}]
[null,"17:45:00",{"$f":"IFERROR(INDEX(ClassList[],MATCH(SUMPRODUCT((ClassList[DAG]=ClassSchedule[[#Headers],[ZONDAG]])*(ROUNDDOWN($B43,10)>=ROUNDDOWN(ClassList[BEGINTIJD],10))*($B43<=ClassList[EINDTIJD]),ClassList[UNIEK]),ClassList[UNIEK],0),2),0)","v":0},{"$f":"IFERROR(INDEX(ClassList[],MATCH(SUMPRODUCT((ClassList[DAG]=ClassSchedule[[#Headers],[MAANDAG]])*(ROUNDDOWN($B43,10)>=ROUNDDOWN(ClassList[BEGINTIJD],10))*($B43<=ClassList[EINDTIJD]),ClassList[UNIEK]),ClassList[UNIEK],0),2),0)","v":0},{"$f":"IFERROR(INDEX(ClassList[],MATCH(SUMPRODUCT((ClassList[DAG]=ClassSchedule[[#Headers],[DINSDAG]])*(ROUNDDOWN($B43,10)>=ROUNDDOWN(ClassList[BEGINTIJD],10))*($B43<=ClassList[EINDTIJD]),ClassList[UNIEK]),ClassList[UNIEK],0),2),0)","v":0},{"$f":"IFERROR(INDEX(ClassList[],MATCH(SUMPRODUCT((ClassList[DAG]=ClassSchedule[[#Headers],[WOENSDAG]])*(ROUNDDOWN($B43,10)>=ROUNDDOWN(ClassList[BEGINTIJD],10))*($B43<=ClassList[EINDTIJD]),ClassList[UNIEK]),ClassList[UNIEK],0),2),0)","v":0},{"$f":"IFERROR(INDEX(ClassList[],MATCH(SUMPRODUCT((ClassList[DAG]=ClassSchedule[[#Headers],[DONDERDAG]])*(ROUNDDOWN($B43,10)>=ROUNDDOWN(ClassList[BEGINTIJD],10))*($B43<=ClassList[EINDTIJD]),ClassList[UNIEK]),ClassList[UNIEK],0),2),0)","v":0},{"$f":"IFERROR(INDEX(ClassList[],MATCH(SUMPRODUCT((ClassList[DAG]=ClassSchedule[[#Headers],[VRIJDAG]])*(ROUNDDOWN($B43,10)>=ROUNDDOWN(ClassList[BEGINTIJD],10))*($B43<=ClassList[EINDTIJD]),ClassList[UNIEK]),ClassList[UNIEK],0),2),0)","v":0},{"$f":"IFERROR(INDEX(ClassList[],MATCH(SUMPRODUCT((ClassList[DAG]=ClassSchedule[[#Headers],[ZATERDAG]])*(ROUNDDOWN($B43,10)>=ROUNDDOWN(ClassList[BEGINTIJD],10))*($B43<=ClassList[EINDTIJD]),ClassList[UNIEK]),ClassList[UNIEK],0),2),0)","v":0}]
[null,"18:00:00",{"$f":"IFERROR(INDEX(ClassList[],MATCH(SUMPRODUCT((ClassList[DAG]=ClassSchedule[[#Headers],[ZONDAG]])*(ROUNDDOWN($B44,10)>=ROUNDDOWN(ClassList[BEGINTIJD],10))*($B44<=ClassList[EINDTIJD]),ClassList[UNIEK]),ClassList[UNIEK],0),2),0)","v":0},{"$f":"IFERROR(INDEX(ClassList[],MATCH(SUMPRODUCT((ClassList[DAG]=ClassSchedule[[#Headers],[MAANDAG]])*(ROUNDDOWN($B44,10)>=ROUNDDOWN(ClassList[BEGINTIJD],10))*($B44<=ClassList[EINDTIJD]),ClassList[UNIEK]),ClassList[UNIEK],0),2),0)","v":0},{"$f":"IFERROR(INDEX(ClassList[],MATCH(SUMPRODUCT((ClassList[DAG]=ClassSchedule[[#Headers],[DINSDAG]])*(ROUNDDOWN($B44,10)>=ROUNDDOWN(ClassList[BEGINTIJD],10))*($B44<=ClassList[EINDTIJD]),ClassList[UNIEK]),ClassList[UNIEK],0),2),0)","v":0},{"$f":"IFERROR(INDEX(ClassList[],MATCH(SUMPRODUCT((ClassList[DAG]=ClassSchedule[[#Headers],[WOENSDAG]])*(ROUNDDOWN($B44,10)>=ROUNDDOWN(ClassList[BEGINTIJD],10))*($B44<=ClassList[EINDTIJD]),ClassList[UNIEK]),ClassList[UNIEK],0),2),0)","v":0},{"$f":"IFERROR(INDEX(ClassList[],MATCH(SUMPRODUCT((ClassList[DAG]=ClassSchedule[[#Headers],[DONDERDAG]])*(ROUNDDOWN($B44,10)>=ROUNDDOWN(ClassList[BEGINTIJD],10))*($B44<=ClassList[EINDTIJD]),ClassList[UNIEK]),ClassList[UNIEK],0),2),0)","v":0},{"$f":"IFERROR(INDEX(ClassList[],MATCH(SUMPRODUCT((ClassList[DAG]=ClassSchedule[[#Headers],[VRIJDAG]])*(ROUNDDOWN($B44,10)>=ROUNDDOWN(ClassList[BEGINTIJD],10))*($B44<=ClassList[EINDTIJD]),ClassList[UNIEK]),ClassList[UNIEK],0),2),0)","v":0},{"$f":"IFERROR(INDEX(ClassList[],MATCH(SUMPRODUCT((ClassList[DAG]=ClassSchedule[[#Headers],[ZATERDAG]])*(ROUNDDOWN($B44,10)>=ROUNDDOWN(ClassList[BEGINTIJD],10))*($B44<=ClassList[EINDTIJD]),ClassList[UNIEK]),ClassList[UNIEK],0),2),0)","v":0}]
[null,"18:15:00",{"$f":"IFERROR(INDEX(ClassList[],MATCH(SUMPRODUCT((ClassList[DAG]=ClassSchedule[[#Headers],[ZONDAG]])*(ROUNDDOWN($B45,10)>=ROUNDDOWN(ClassList[BEGINTIJD],10))*($B45<=ClassList[EINDTIJD]),ClassList[UNIEK]),ClassList[UNIEK],0),2),0)","v":0},{"$f":"IFERROR(INDEX(ClassList[],MATCH(SUMPRODUCT((ClassList[DAG]=ClassSchedule[[#Headers],[MAANDAG]])*(ROUNDDOWN($B45,10)>=ROUNDDOWN(ClassList[BEGINTIJD],10))*($B45<=ClassList[EINDTIJD]),ClassList[UNIEK]),ClassList[UNIEK],0),2),0)","v":0},{"$f":"IFERROR(INDEX(ClassList[],MATCH(SUMPRODUCT((ClassList[DAG]=ClassSchedule[[#Headers],[DINSDAG]])*(ROUNDDOWN($B45,10)>=ROUNDDOWN(ClassList[BEGINTIJD],10))*($B45<=ClassList[EINDTIJD]),ClassList[UNIEK]),ClassList[UNIEK],0),2),0)","v":0},{"$f":"IFERROR(INDEX(ClassList[],MATCH(SUMPRODUCT((ClassList[DAG]=ClassSchedule[[#Headers],[WOENSDAG]])*(ROUNDDOWN($B45,10)>=ROUNDDOWN(ClassList[BEGINTIJD],10))*($B45<=ClassList[EINDTIJD]),ClassList[UNIEK]),ClassList[UNIEK],0),2),0)","v":0},{"$f":"IFERROR(INDEX(ClassList[],MATCH(SUMPRODUCT((ClassList[DAG]=ClassSchedule[[#Headers],[DONDERDAG]])*(ROUNDDOWN($B45,10)>=ROUNDDOWN(ClassList[BEGINTIJD],10))*($B45<=ClassList[EINDTIJD]),ClassList[UNIEK]),ClassList[UNIEK],0),2),0)","v":0},{"$f":"IFERROR(INDEX(ClassList[],MATCH(SUMPRODUCT((ClassList[DAG]=ClassSchedule[[#Headers],[VRIJDAG]])*(ROUNDDOWN($B45,10)>=ROUNDDOWN(ClassList[BEGINTIJD],10))*($B45<=ClassList[EINDTIJD]),ClassList[UNIEK]),ClassList[UNIEK],0),2),0)","v":0},{"$f":"IFERROR(INDEX(ClassList[],MATCH(SUMPRODUCT((ClassList[DAG]=ClassSchedule[[#Headers],[ZATERDAG]])*(ROUNDDOWN($B45,10)>=ROUNDDOWN(ClassList[BEGINTIJD],10))*($B45<=ClassList[EINDTIJD]),ClassList[UNIEK]),ClassList[UNIEK],0),2),0)","v":0}]
[null,"18:30:00",{"$f":"IFERROR(INDEX(ClassList[],MATCH(SUMPRODUCT((ClassList[DAG]=ClassSchedule[[#Headers],[ZONDAG]])*(ROUNDDOWN($B46,10)>=ROUNDDOWN(ClassList[BEGINTIJD],10))*($B46<=ClassList[EINDTIJD]),ClassList[UNIEK]),ClassList[UNIEK],0),2),0)","v":0},{"$f":"IFERROR(INDEX(ClassList[],MATCH(SUMPRODUCT((ClassList[DAG]=ClassSchedule[[#Headers],[MAANDAG]])*(ROUNDDOWN($B46,10)>=ROUNDDOWN(ClassList[BEGINTIJD],10))*($B46<=ClassList[EINDTIJD]),ClassList[UNIEK]),ClassList[UNIEK],0),2),0)","v":0},{"$f":"IFERROR(INDEX(ClassList[],MATCH(SUMPRODUCT((ClassList[DAG]=ClassSchedule[[#Headers],[DINSDAG]])*(ROUNDDOWN($B46,10)>=ROUNDDOWN(ClassList[BEGINTIJD],10))*($B46<=ClassList[EINDTIJD]),ClassList[UNIEK]),ClassList[UNIEK],0),2),0)","v":0},{"$f":"IFERROR(INDEX(ClassList[],MATCH(SUMPRODUCT((ClassList[DAG]=ClassSchedule[[#Headers],[WOENSDAG]])*(ROUNDDOWN($B46,10)>=ROUNDDOWN(ClassList[BEGINTIJD],10))*($B46<=ClassList[EINDTIJD]),ClassList[UNIEK]),ClassList[UNIEK],0),2),0)","v":0},{"$f":"IFERROR(INDEX(ClassList[],MATCH(SUMPRODUCT((ClassList[DAG]=ClassSchedule[[#Headers],[DONDERDAG]])*(ROUNDDOWN($B46,10)>=ROUNDDOWN(ClassList[BEGINTIJD],10))*($B46<=ClassList[EINDTIJD]),ClassList[UNIEK]),ClassList[UNIEK],0),2),0)","v":0},{"$f":"IFERROR(INDEX(ClassList[],MATCH(SUMPRODUCT((ClassList[DAG]=ClassSchedule[[#Headers],[VRIJDAG]])*(ROUNDDOWN($B46,10)>=ROUNDDOWN(ClassList[BEGINTIJD],10))*($B46<=ClassList[EINDTIJD]),ClassList[UNIEK]),ClassList[UNIEK],0),2),0)","v":0},{"$f":"IFERROR(INDEX(ClassList[],MATCH(SUMPRODUCT((ClassList[DAG]=ClassSchedule[[#Headers],[ZATERDAG]])*(ROUNDDOWN($B46,10)>=ROUNDDOWN(ClassList[BEGINTIJD],10))*($B46<=ClassList[EINDTIJD]),ClassList[UNIEK]),ClassList[UNIEK],0),2),0)","v":0}]
[null,"18:45:00",{"$f":"IFERROR(INDEX(ClassList[],MATCH(SUMPRODUCT((ClassList[DAG]=ClassSchedule[[#Headers],[ZONDAG]])*(ROUNDDOWN($B47,10)>=ROUNDDOWN(ClassList[BEGINTIJD],10))*($B47<=ClassList[EINDTIJD]),ClassList[UNIEK]),ClassList[UNIEK],0),2),0)","v":0},{"$f":"IFERROR(INDEX(ClassList[],MATCH(SUMPRODUCT((ClassList[DAG]=ClassSchedule[[#Headers],[MAANDAG]])*(ROUNDDOWN($B47,10)>=ROUNDDOWN(ClassList[BEGINTIJD],10))*($B47<=ClassList[EINDTIJD]),ClassList[UNIEK]),ClassList[UNIEK],0),2),0)","v":0},{"$f":"IFERROR(INDEX(ClassList[],MATCH(SUMPRODUCT((ClassList[DAG]=ClassSchedule[[#Headers],[DINSDAG]])*(ROUNDDOWN($B47,10)>=ROUNDDOWN(ClassList[BEGINTIJD],10))*($B47<=ClassList[EINDTIJD]),ClassList[UNIEK]),ClassList[UNIEK],0),2),0)","v":0},{"$f":"IFERROR(INDEX(ClassList[],MATCH(SUMPRODUCT((ClassList[DAG]=ClassSchedule[[#Headers],[WOENSDAG]])*(ROUNDDOWN($B47,10)>=ROUNDDOWN(ClassList[BEGINTIJD],10))*($B47<=ClassList[EINDTIJD]),ClassList[UNIEK]),ClassList[UNIEK],0),2),0)","v":0},{"$f":"IFERROR(INDEX(ClassList[],MATCH(SUMPRODUCT((ClassList[DAG]=ClassSchedule[[#Headers],[DONDERDAG]])*(ROUNDDOWN($B47,10)>=ROUNDDOWN(ClassList[BEGINTIJD],10))*($B47<=ClassList[EINDTIJD]),ClassList[UNIEK]),ClassList[UNIEK],0),2),0)","v":0},{"$f":"IFERROR(INDEX(ClassList[],MATCH(SUMPRODUCT((ClassList[DAG]=ClassSchedule[[#Headers],[VRIJDAG]])*(ROUNDDOWN($B47,10)>=ROUNDDOWN(ClassList[BEGINTIJD],10))*($B47<=ClassList[EINDTIJD]),ClassList[UNIEK]),ClassList[UNIEK],0),2),0)","v":0},{"$f":"IFERROR(INDEX(ClassList[],MATCH(SUMPRODUCT((ClassList[DAG]=ClassSchedule[[#Headers],[ZATERDAG]])*(ROUNDDOWN($B47,10)>=ROUNDDOWN(ClassList[BEGINTIJD],10))*($B47<=ClassList[EINDTIJD]),ClassList[UNIEK]),ClassList[UNIEK],0),2),0)","v":0}]
[null,"19:00:00",{"$f":"IFERROR(INDEX(ClassList[],MATCH(SUMPRODUCT((ClassList[DAG]=ClassSchedule[[#Headers],[ZONDAG]])*(ROUNDDOWN($B48,10)>=ROUNDDOWN(ClassList[BEGINTIJD],10))*($B48<=ClassList[EINDTIJD]),ClassList[UNIEK]),ClassList[UNIEK],0),2),0)","v":0},{"$f":"IFERROR(INDEX(ClassList[],MATCH(SUMPRODUCT((ClassList[DAG]=ClassSchedule[[#Headers],[MAANDAG]])*(ROUNDDOWN($B48,10)>=ROUNDDOWN(ClassList[BEGINTIJD],10))*($B48<=ClassList[EINDTIJD]),ClassList[UNIEK]),ClassList[UNIEK],0),2),0)","v":0},{"$f":"IFERROR(INDEX(ClassList[],MATCH(SUMPRODUCT((ClassList[DAG]=ClassSchedule[[#Headers],[DINSDAG]])*(ROUNDDOWN($B48,10)>=ROUNDDOWN(ClassList[BEGINTIJD],10))*($B48<=ClassList[EINDTIJD]),ClassList[UNIEK]),ClassList[UNIEK],0),2),0)","v":0},{"$f":"IFERROR(INDEX(ClassList[],MATCH(SUMPRODUCT((ClassList[DAG]=ClassSchedule[[#Headers],[WOENSDAG]])*(ROUNDDOWN($B48,10)>=ROUNDDOWN(ClassList[BEGINTIJD],10))*($B48<=ClassList[EINDTIJD]),ClassList[UNIEK]),ClassList[UNIEK],0),2),0)","v":0},{"$f":"IFERROR(INDEX(ClassList[],MATCH(SUMPRODUCT((ClassList[DAG]=ClassSchedule[[#Headers],[DONDERDAG]])*(ROUNDDOWN($B48,10)>=ROUNDDOWN(ClassList[BEGINTIJD],10))*($B48<=ClassList[EINDTIJD]),ClassList[UNIEK]),ClassList[UNIEK],0),2),0)","v":0},{"$f":"IFERROR(INDEX(ClassList[],MATCH(SUMPRODUCT((ClassList[DAG]=ClassSchedule[[#Headers],[VRIJDAG]])*(ROUNDDOWN($B48,10)>=ROUNDDOWN(ClassList[BEGINTIJD],10))*($B48<=ClassList[EINDTIJD]),ClassList[UNIEK]),ClassList[UNIEK],0),2),0)","v":0},{"$f":"IFERROR(INDEX(ClassList[],MATCH(SUMPRODUCT((ClassList[DAG]=ClassSchedule[[#Headers],[ZATERDAG]])*(ROUNDDOWN($B48,10)>=ROUNDDOWN(ClassList[BEGINTIJD],10))*($B48<=ClassList[EINDTIJD]),ClassList[UNIEK]),ClassList[UNIEK],0),2),0)","v":0}]
[null,"19:15:00",{"$f":"IFERROR(INDEX(ClassList[],MATCH(SUMPRODUCT((ClassList[DAG]=ClassSchedule[[#Headers],[ZONDAG]])*(ROUNDDOWN($B49,10)>=ROUNDDOWN(ClassList[BEGINTIJD],10))*($B49<=ClassList[EINDTIJD]),ClassList[UNIEK]),ClassList[UNIEK],0),2),0)","v":0},{"$f":"IFERROR(INDEX(ClassList[],MATCH(SUMPRODUCT((ClassList[DAG]=ClassSchedule[[#Headers],[MAANDAG]])*(ROUNDDOWN($B49,10)>=ROUNDDOWN(ClassList[BEGINTIJD],10))*($B49<=ClassList[EINDTIJD]),ClassList[UNIEK]),ClassList[UNIEK],0),2),0)","v":0},{"$f":"IFERROR(INDEX(ClassList[],MATCH(SUMPRODUCT((ClassList[DAG]=ClassSchedule[[#Headers],[DINSDAG]])*(ROUNDDOWN($B49,10)>=ROUNDDOWN(ClassList[BEGINTIJD],10))*($B49<=ClassList[EINDTIJD]),ClassList[UNIEK]),ClassList[UNIEK],0),2),0)","v":0},{"$f":"IFERROR(INDEX(ClassList[],MATCH(SUMPRODUCT((ClassList[DAG]=ClassSchedule[[#Headers],[WOENSDAG]])*(ROUNDDOWN($B49,10)>=ROUNDDOWN(ClassList[BEGINTIJD],10))*($B49<=ClassList[EINDTIJD]),ClassList[UNIEK]),ClassList[UNIEK],0),2),0)","v":0},{"$f":"IFERROR(INDEX(ClassList[],MATCH(SUMPRODUCT((ClassList[DAG]=ClassSchedule[[#Headers],[DONDERDAG]])*(ROUNDDOWN($B49,10)>=ROUNDDOWN(ClassList[BEGINTIJD],10))*($B49<=ClassList[EINDTIJD]),ClassList[UNIEK]),ClassList[UNIEK],0),2),0)","v":0},{"$f":"IFERROR(INDEX(ClassList[],MATCH(SUMPRODUCT((ClassList[DAG]=ClassSchedule[[#Headers],[VRIJDAG]])*(ROUNDDOWN($B49,10)>=ROUNDDOWN(ClassList[BEGINTIJD],10))*($B49<=ClassList[EINDTIJD]),ClassList[UNIEK]),ClassList[UNIEK],0),2),0)","v":0},{"$f":"IFERROR(INDEX(ClassList[],MATCH(SUMPRODUCT((ClassList[DAG]=ClassSchedule[[#Headers],[ZATERDAG]])*(ROUNDDOWN($B49,10)>=ROUNDDOWN(ClassList[BEGINTIJD],10))*($B49<=ClassList[EINDTIJD]),ClassList[UNIEK]),ClassList[UNIEK],0),2),0)","v":0}]
[null,"19:30:00",{"$f":"IFERROR(INDEX(ClassList[],MATCH(SUMPRODUCT((ClassList[DAG]=ClassSchedule[[#Headers],[ZONDAG]])*(ROUNDDOWN($B50,10)>=ROUNDDOWN(ClassList[BEGINTIJD],10))*($B50<=ClassList[EINDTIJD]),ClassList[UNIEK]),ClassList[UNIEK],0),2),0)","v":0},{"$f":"IFERROR(INDEX(ClassList[],MATCH(SUMPRODUCT((ClassList[DAG]=ClassSchedule[[#Headers],[MAANDAG]])*(ROUNDDOWN($B50,10)>=ROUNDDOWN(ClassList[BEGINTIJD],10))*($B50<=ClassList[EINDTIJD]),ClassList[UNIEK]),ClassList[UNIEK],0),2),0)","v":0},{"$f":"IFERROR(INDEX(ClassList[],MATCH(SUMPRODUCT((ClassList[DAG]=ClassSchedule[[#Headers],[DINSDAG]])*(ROUNDDOWN($B50,10)>=ROUNDDOWN(ClassList[BEGINTIJD],10))*($B50<=ClassList[EINDTIJD]),ClassList[UNIEK]),ClassList[UNIEK],0),2),0)","v":0},{"$f":"IFERROR(INDEX(ClassList[],MATCH(SUMPRODUCT((ClassList[DAG]=ClassSchedule[[#Headers],[WOENSDAG]])*(ROUNDDOWN($B50,10)>=ROUNDDOWN(ClassList[BEGINTIJD],10))*($B50<=ClassList[EINDTIJD]),ClassList[UNIEK]),ClassList[UNIEK],0),2),0)","v":0},{"$f":"IFERROR(INDEX(ClassList[],MATCH(SUMPRODUCT((ClassList[DAG]=ClassSchedule[[#Headers],[DONDERDAG]])*(ROUNDDOWN($B50,10)>=ROUNDDOWN(ClassList[BEGINTIJD],10))*($B50<=ClassList[EINDTIJD]),ClassList[UNIEK]),ClassList[UNIEK],0),2),0)","v":0},{"$f":"IFERROR(INDEX(ClassList[],MATCH(SUMPRODUCT((ClassList[DAG]=ClassSchedule[[#Headers],[VRIJDAG]])*(ROUNDDOWN($B50,10)>=ROUNDDOWN(ClassList[BEGINTIJD],10))*($B50<=ClassList[EINDTIJD]),ClassList[UNIEK]),ClassList[UNIEK],0),2),0)","v":0},{"$f":"IFERROR(INDEX(ClassList[],MATCH(SUMPRODUCT((ClassList[DAG]=ClassSchedule[[#Headers],[ZATERDAG]])*(ROUNDDOWN($B50,10)>=ROUNDDOWN(ClassList[BEGINTIJD],10))*($B50<=ClassList[EINDTIJD]),ClassList[UNIEK]),ClassList[UNIEK],0),2),0)","v":0}]
[null,"19:45:00",{"$f":"IFERROR(INDEX(ClassList[],MATCH(SUMPRODUCT((ClassList[DAG]=ClassSchedule[[#Headers],[ZONDAG]])*(ROUNDDOWN($B51,10)>=ROUNDDOWN(ClassList[BEGINTIJD],10))*($B51<=ClassList[EINDTIJD]),ClassList[UNIEK]),ClassList[UNIEK],0),2),0)","v":0},{"$f":"IFERROR(INDEX(ClassList[],MATCH(SUMPRODUCT((ClassList[DAG]=ClassSchedule[[#Headers],[MAANDAG]])*(ROUNDDOWN($B51,10)>=ROUNDDOWN(ClassList[BEGINTIJD],10))*($B51<=ClassList[EINDTIJD]),ClassList[UNIEK]),ClassList[UNIEK],0),2),0)","v":0},{"$f":"IFERROR(INDEX(ClassList[],MATCH(SUMPRODUCT((ClassList[DAG]=ClassSchedule[[#Headers],[DINSDAG]])*(ROUNDDOWN($B51,10)>=ROUNDDOWN(ClassList[BEGINTIJD],10))*($B51<=ClassList[EINDTIJD]),ClassList[UNIEK]),ClassList[UNIEK],0),2),0)","v":0},{"$f":"IFERROR(INDEX(ClassList[],MATCH(SUMPRODUCT((ClassList[DAG]=ClassSchedule[[#Headers],[WOENSDAG]])*(ROUNDDOWN($B51,10)>=ROUNDDOWN(ClassList[BEGINTIJD],10))*($B51<=ClassList[EINDTIJD]),ClassList[UNIEK]),ClassList[UNIEK],0),2),0)","v":0},{"$f":"IFERROR(INDEX(ClassList[],MATCH(SUMPRODUCT((ClassList[DAG]=ClassSchedule[[#Headers],[DONDERDAG]])*(ROUNDDOWN($B51,10)>=ROUNDDOWN(ClassList[BEGINTIJD],10))*($B51<=ClassList[EINDTIJD]),ClassList[UNIEK]),ClassList[UNIEK],0),2),0)","v":0},{"$f":"IFERROR(INDEX(ClassList[],MATCH(SUMPRODUCT((ClassList[DAG]=ClassSchedule[[#Headers],[VRIJDAG]])*(ROUNDDOWN($B51,10)>=ROUNDDOWN(ClassList[BEGINTIJD],10))*($B51<=ClassList[EINDTIJD]),ClassList[UNIEK]),ClassList[UNIEK],0),2),0)","v":0},{"$f":"IFERROR(INDEX(ClassList[],MATCH(SUMPRODUCT((ClassList[DAG]=ClassSchedule[[#Headers],[ZATERDAG]])*(ROUNDDOWN($B51,10)>=ROUNDDOWN(ClassList[BEGINTIJD],10))*($B51<=ClassList[EINDTIJD]),ClassList[UNIEK]),ClassList[UNIEK],0),2),0)","v":0}]
[null,"20:00:00",{"$f":"IFERROR(INDEX(ClassList[],MATCH(SUMPRODUCT((ClassList[DAG]=ClassSchedule[[#Headers],[ZONDAG]])*(ROUNDDOWN($B52,10)>=ROUNDDOWN(ClassList[BEGINTIJD],10))*($B52<=ClassList[EINDTIJD]),ClassList[UNIEK]),ClassList[UNIEK],0),2),0)","v":0},{"$f":"IFERROR(INDEX(ClassList[],MATCH(SUMPRODUCT((ClassList[DAG]=ClassSchedule[[#Headers],[MAANDAG]])*(ROUNDDOWN($B52,10)>=ROUNDDOWN(ClassList[BEGINTIJD],10))*($B52<=ClassList[EINDTIJD]),ClassList[UNIEK]),ClassList[UNIEK],0),2),0)","v":0},{"$f":"IFERROR(INDEX(ClassList[],MATCH(SUMPRODUCT((ClassList[DAG]=ClassSchedule[[#Headers],[DINSDAG]])*(ROUNDDOWN($B52,10)>=ROUNDDOWN(ClassList[BEGINTIJD],10))*($B52<=ClassList[EINDTIJD]),ClassList[UNIEK]),ClassList[UNIEK],0),2),0)","v":0},{"$f":"IFERROR(INDEX(ClassList[],MATCH(SUMPRODUCT((ClassList[DAG]=ClassSchedule[[#Headers],[WOENSDAG]])*(ROUNDDOWN($B52,10)>=ROUNDDOWN(ClassList[BEGINTIJD],10))*($B52<=ClassList[EINDTIJD]),ClassList[UNIEK]),ClassList[UNIEK],0),2),0)","v":0},{"$f":"IFERROR(INDEX(ClassList[],MATCH(SUMPRODUCT((ClassList[DAG]=ClassSchedule[[#Headers],[DONDERDAG]])*(ROUNDDOWN($B52,10)>=ROUNDDOWN(ClassList[BEGINTIJD],10))*($B52<=ClassList[EINDTIJD]),ClassList[UNIEK]),ClassList[UNIEK],0),2),0)","v":0},{"$f":"IFERROR(INDEX(ClassList[],MATCH(SUMPRODUCT((ClassList[DAG]=ClassSchedule[[#Headers],[VRIJDAG]])*(ROUNDDOWN($B52,10)>=ROUNDDOWN(ClassList[BEGINTIJD],10))*($B52<=ClassList[EINDTIJD]),ClassList[UNIEK]),ClassList[UNIEK],0),2),0)","v":0},{"$f":"IFERROR(INDEX(ClassList[],MATCH(SUMPRODUCT((ClassList[DAG]=ClassSchedule[[#Headers],[ZATERDAG]])*(ROUNDDOWN($B52,10)>=ROUNDDOWN(ClassList[BEGINTIJD],10))*($B52<=ClassList[EINDTIJD]),ClassList[UNIEK]),ClassList[UNIEK],0),2),0)","v":0}]
[null,"20:15:00",{"$f":"IFERROR(INDEX(ClassList[],MATCH(SUMPRODUCT((ClassList[DAG]=ClassSchedule[[#Headers],[ZONDAG]])*(ROUNDDOWN($B53,10)>=ROUNDDOWN(ClassList[BEGINTIJD],10))*($B53<=ClassList[EINDTIJD]),ClassList[UNIEK]),ClassList[UNIEK],0),2),0)","v":0},{"$f":"IFERROR(INDEX(ClassList[],MATCH(SUMPRODUCT((ClassList[DAG]=ClassSchedule[[#Headers],[MAANDAG]])*(ROUNDDOWN($B53,10)>=ROUNDDOWN(ClassList[BEGINTIJD],10))*($B53<=ClassList[EINDTIJD]),ClassList[UNIEK]),ClassList[UNIEK],0),2),0)","v":0},{"$f":"IFERROR(INDEX(ClassList[],MATCH(SUMPRODUCT((ClassList[DAG]=ClassSchedule[[#Headers],[DINSDAG]])*(ROUNDDOWN($B53,10)>=ROUNDDOWN(ClassList[BEGINTIJD],10))*($B53<=ClassList[EINDTIJD]),ClassList[UNIEK]),ClassList[UNIEK],0),2),0)","v":0},{"$f":"IFERROR(INDEX(ClassList[],MATCH(SUMPRODUCT((ClassList[DAG]=ClassSchedule[[#Headers],[WOENSDAG]])*(ROUNDDOWN($B53,10)>=ROUNDDOWN(ClassList[BEGINTIJD],10))*($B53<=ClassList[EINDTIJD]),ClassList[UNIEK]),ClassList[UNIEK],0),2),0)","v":0},{"$f":"IFERROR(INDEX(ClassList[],MATCH(SUMPRODUCT((ClassList[DAG]=ClassSchedule[[#Headers],[DONDERDAG]])*(ROUNDDOWN($B53,10)>=ROUNDDOWN(ClassList[BEGINTIJD],10))*($B53<=ClassList[EINDTIJD]),ClassList[UNIEK]),ClassList[UNIEK],0),2),0)","v":0},{"$f":"IFERROR(INDEX(ClassList[],MATCH(SUMPRODUCT((ClassList[DAG]=ClassSchedule[[#Headers],[VRIJDAG]])*(ROUNDDOWN($B53,10)>=ROUNDDOWN(ClassList[BEGINTIJD],10))*($B53<=ClassList[EINDTIJD]),ClassList[UNIEK]),ClassList[UNIEK],0),2),0)","v":0},{"$f":"IFERROR(INDEX(ClassList[],MATCH(SUMPRODUCT((ClassList[DAG]=ClassSchedule[[#Headers],[ZATERDAG]])*(ROUNDDOWN($B53,10)>=ROUNDDOWN(ClassList[BEGINTIJD],10))*($B53<=ClassList[EINDTIJD]),ClassList[UNIEK]),ClassList[UNIEK],0),2),0)","v":0}]
[null,"20:30:00",{"$f":"IFERROR(INDEX(ClassList[],MATCH(SUMPRODUCT((ClassList[DAG]=ClassSchedule[[#Headers],[ZONDAG]])*(ROUNDDOWN($B54,10)>=ROUNDDOWN(ClassList[BEGINTIJD],10))*($B54<=ClassList[EINDTIJD]),ClassList[UNIEK]),ClassList[UNIEK],0),2),0)","v":0},{"$f":"IFERROR(INDEX(ClassList[],MATCH(SUMPRODUCT((ClassList[DAG]=ClassSchedule[[#Headers],[MAANDAG]])*(ROUNDDOWN($B54,10)>=ROUNDDOWN(ClassList[BEGINTIJD],10))*($B54<=ClassList[EINDTIJD]),ClassList[UNIEK]),ClassList[UNIEK],0),2),0)","v":0},{"$f":"IFERROR(INDEX(ClassList[],MATCH(SUMPRODUCT((ClassList[DAG]=ClassSchedule[[#Headers],[DINSDAG]])*(ROUNDDOWN($B54,10)>=ROUNDDOWN(ClassList[BEGINTIJD],10))*($B54<=ClassList[EINDTIJD]),ClassList[UNIEK]),ClassList[UNIEK],0),2),0)","v":0},{"$f":"IFERROR(INDEX(ClassList[],MATCH(SUMPRODUCT((ClassList[DAG]=ClassSchedule[[#Headers],[WOENSDAG]])*(ROUNDDOWN($B54,10)>=ROUNDDOWN(ClassList[BEGINTIJD],10))*($B54<=ClassList[EINDTIJD]),ClassList[UNIEK]),ClassList[UNIEK],0),2),0)","v":0},{"$f":"IFERROR(INDEX(ClassList[],MATCH(SUMPRODUCT((ClassList[DAG]=ClassSchedule[[#Headers],[DONDERDAG]])*(ROUNDDOWN($B54,10)>=ROUNDDOWN(ClassList[BEGINTIJD],10))*($B54<=ClassList[EINDTIJD]),ClassList[UNIEK]),ClassList[UNIEK],0),2),0)","v":0},{"$f":"IFERROR(INDEX(ClassList[],MATCH(SUMPRODUCT((ClassList[DAG]=ClassSchedule[[#Headers],[VRIJDAG]])*(ROUNDDOWN($B54,10)>=ROUNDDOWN(ClassList[BEGINTIJD],10))*($B54<=ClassList[EINDTIJD]),ClassList[UNIEK]),ClassList[UNIEK],0),2),0)","v":0},{"$f":"IFERROR(INDEX(ClassList[],MATCH(SUMPRODUCT((ClassList[DAG]=ClassSchedule[[#Headers],[ZATERDAG]])*(ROUNDDOWN($B54,10)>=ROUNDDOWN(ClassList[BEGINTIJD],10))*($B54<=ClassList[EINDTIJD]),ClassList[UNIEK]),ClassList[UNIEK],0),2),0)","v":0}]
[null,"20:45:00",{"$f":"IFERROR(INDEX(ClassList[],MATCH(SUMPRODUCT((ClassList[DAG]=ClassSchedule[[#Headers],[ZONDAG]])*(ROUNDDOWN($B55,10)>=ROUNDDOWN(ClassList[BEGINTIJD],10))*($B55<=ClassList[EINDTIJD]),ClassList[UNIEK]),ClassList[UNIEK],0),2),0)","v":0},{"$f":"IFERROR(INDEX(ClassList[],MATCH(SUMPRODUCT((ClassList[DAG]=ClassSchedule[[#Headers],[MAANDAG]])*(ROUNDDOWN($B55,10)>=ROUNDDOWN(ClassList[BEGINTIJD],10))*($B55<=ClassList[EINDTIJD]),ClassList[UNIEK]),ClassList[UNIEK],0),2),0)","v":0},{"$f":"IFERROR(INDEX(ClassList[],MATCH(SUMPRODUCT((ClassList[DAG]=ClassSchedule[[#Headers],[DINSDAG]])*(ROUNDDOWN($B55,10)>=ROUNDDOWN(ClassList[BEGINTIJD],10))*($B55<=ClassList[EINDTIJD]),ClassList[UNIEK]),ClassList[UNIEK],0),2),0)","v":0},{"$f":"IFERROR(INDEX(ClassList[],MATCH(SUMPRODUCT((ClassList[DAG]=ClassSchedule[[#Headers],[WOENSDAG]])*(ROUNDDOWN($B55,10)>=ROUNDDOWN(ClassList[BEGINTIJD],10))*($B55<=ClassList[EINDTIJD]),ClassList[UNIEK]),ClassList[UNIEK],0),2),0)","v":0},{"$f":"IFERROR(INDEX(ClassList[],MATCH(SUMPRODUCT((ClassList[DAG]=ClassSchedule[[#Headers],[DONDERDAG]])*(ROUNDDOWN($B55,10)>=ROUNDDOWN(ClassList[BEGINTIJD],10))*($B55<=ClassList[EINDTIJD]),ClassList[UNIEK]),ClassList[UNIEK],0),2),0)","v":0},{"$f":"IFERROR(INDEX(ClassList[],MATCH(SUMPRODUCT((ClassList[DAG]=ClassSchedule[[#Headers],[VRIJDAG]])*(ROUNDDOWN($B55,10)>=ROUNDDOWN(ClassList[BEGINTIJD],10))*($B55<=ClassList[EINDTIJD]),ClassList[UNIEK]),ClassList[UNIEK],0),2),0)","v":0},{"$f":"IFERROR(INDEX(ClassList[],MATCH(SUMPRODUCT((ClassList[DAG]=ClassSchedule[[#Headers],[ZATERDAG]])*(ROUNDDOWN($B55,10)>=ROUNDDOWN(ClassList[BEGINTIJD],10))*($B55<=ClassList[EINDTIJD]),ClassList[UNIEK]),ClassList[UNIEK],0),2),0)","v":0}]
[null,"21:00:00",{"$f":"IFERROR(INDEX(ClassList[],MATCH(SUMPRODUCT((ClassList[DAG]=ClassSchedule[[#Headers],[ZONDAG]])*(ROUNDDOWN($B56,10)>=ROUNDDOWN(ClassList[BEGINTIJD],10))*($B56<=ClassList[EINDTIJD]),ClassList[UNIEK]),ClassList[UNIEK],0),2),0)","v":0},{"$f":"IFERROR(INDEX(ClassList[],MATCH(SUMPRODUCT((ClassList[DAG]=ClassSchedule[[#Headers],[MAANDAG]])*(ROUNDDOWN($B56,10)>=ROUNDDOWN(ClassList[BEGINTIJD],10))*($B56<=ClassList[EINDTIJD]),ClassList[UNIEK]),ClassList[UNIEK],0),2),0)","v":0},{"$f":"IFERROR(INDEX(ClassList[],MATCH(SUMPRODUCT((ClassList[DAG]=ClassSchedule[[#Headers],[DINSDAG]])*(ROUNDDOWN($B56,10)>=ROUNDDOWN(ClassList[BEGINTIJD],10))*($B56<=ClassList[EINDTIJD]),ClassList[UNIEK]),ClassList[UNIEK],0),2),0)","v":0},{"$f":"IFERROR(INDEX(ClassList[],MATCH(SUMPRODUCT((ClassList[DAG]=ClassSchedule[[#Headers],[WOENSDAG]])*(ROUNDDOWN($B56,10)>=ROUNDDOWN(ClassList[BEGINTIJD],10))*($B56<=ClassList[EINDTIJD]),ClassList[UNIEK]),ClassList[UNIEK],0),2),0)","v":0},{"$f":"IFERROR(INDEX(ClassList[],MATCH(SUMPRODUCT((ClassList[DAG]=ClassSchedule[[#Headers],[DONDERDAG]])*(ROUNDDOWN($B56,10)>=ROUNDDOWN(ClassList[BEGINTIJD],10))*($B56<=ClassList[EINDTIJD]),ClassList[UNIEK]),ClassList[UNIEK],0),2),0)","v":0},{"$f":"IFERROR(INDEX(ClassList[],MATCH(SUMPRODUCT((ClassList[DAG]=ClassSchedule[[#Headers],[VRIJDAG]])*(ROUNDDOWN($B56,10)>=ROUNDDOWN(ClassList[BEGINTIJD],10))*($B56<=ClassList[EINDTIJD]),ClassList[UNIEK]),ClassList[UNIEK],0),2),0)","v":0},{"$f":"IFERROR(INDEX(ClassList[],MATCH(SUMPRODUCT((ClassList[DAG]=ClassSchedule[[#Headers],[ZATERDAG]])*(ROUNDDOWN($B56,10)>=ROUNDDOWN(ClassList[BEGINTIJD],10))*($B56<=ClassList[EINDTIJD]),ClassList[UNIEK]),ClassList[UNIEK],0),2),0)","v":0}]

{"sheet":"Vakkenlijst","index":1,"n_rows":10,"n_cols":8,"rows_kept":10,"merged":[[0,1,0,5],[0,6,0,7]]}
[null,"VAKKENLIJST",{"$nulls":4},"Lesrooster"]
[null,"VAK","ID","DAG","LOCATIE","BEGINTIJD","EINDTIJD","UNIEK"]
[null,"Technisch schrijven","SC-121","MAANDAG","Gebouw A","13:00:00","14:00:00",{"$f":"ROW()-ROW(ClassList[[#Headers],[UNIEK]])","v":1}]
[null,"Technisch schrijven","SC-121","WOENSDAG","Gebouw A","13:00:00","14:00:00",{"$f":"ROW()-ROW(ClassList[[#Headers],[UNIEK]])","v":2}]
[null,"Spreken in het openbaar","SP-111","MAANDAG","Gebouw B","16:00:00","17:00:00",{"$f":"ROW()-ROW(ClassList[[#Headers],[UNIEK]])","v":3}]
[null,"Gezondheid en fitness","HLO-295","DINSDAG","Gebouw B","11:00:00","12:00:00",{"$f":"ROW()-ROW(ClassList[[#Headers],[UNIEK]])","v":4}]
[null,"Gezondheid en fitness","HLO-295","DONDERDAG","Gebouw B","11:00:00","12:00:00",{"$f":"ROW()-ROW(ClassList[[#Headers],[UNIEK]])","v":5}]
[null,"Algebra","WSK-113","MAANDAG","Gebouw C","08:10:00","09:15:00",{"$f":"ROW()-ROW(ClassList[[#Headers],[UNIEK]])","v":6}]
[null,"Algebra","WSK-113","WOENSDAG","Gebouw C","08:10:00","09:15:00",{"$f":"ROW()-ROW(ClassList[[#Headers],[UNIEK]])","v":7}]
[null,"Algebra","WSK-113","VRIJDAG","Gebouw C","08:10:00","09:15:00",{"$f":"ROW()-ROW(ClassList[[#Headers],[UNIEK]])","v":8}]